Workbook

Sheet A1.1 Distributor Information
C3: ="Name of LDC: " &D8 -> Name of LDC: EPCOR Natural Gas Limited Partnership
C4: ="OEB Application Number: " & D9 -> OEB Application Number: EB-2021-0216 Exhibit A - 2022 Custom Incentive Application
C6: Distributor Information
C8: Distributor Name | D8: EPCOR Natural Gas Limited Partnership
C9: OEB Application Number | D9: EB-2021-0216 Exhibit A - 2022 Custom Incentive Application
C12: =MID(CELL("filename",A1),FIND("]",CELL("filename",A1))+1,255) -> A1.1 Distributor Information

Sheet B1.1 Current Distribution Rates
C2: ='A1.1 Distributor Information'!C3 -> Name of LDC: EPCOR Natural Gas Limited Partnership
C3: ='A1.1 Distributor Information'!C4 -> OEB Application Number: EB-2021-0216 Exhibit A - 2022 Custom Incentive Application
C5: Current Distribution Tariff Sheet Rates
E7: Fixed | G7: Delivery Charge | J7: Delivery Charge
C8: Rate Class | E8: Monthly Base | F8: =OneDollar -> Bill 32 Rate | G8: Tier 1 | H8: Tier 2 | I8: Tier 3 | J8: Contract Demand | K8: Gas Supply | L8: Upstream Recovery Charge | M8: Transportation & Storage Charge | N8: Transportation Charge From Dawn | O8: Transportation Charge From Kirkwall | P8: Transportation Charge From Parkway | Q8: Federal Carbon Charge
E9: $/month | F9: $ / month | G9: ₵ / m3 | H9: ₵ / m3 | I9: ₵ / m3 | J9: ₵ /contracted m3 | K9: ₵ / m3 | L9: (A) | M9: ₵ / m3 | N9: ₵ /contracted m3 | O9: ₵ /contracted m3 | P9: ₵ /contracted m3 | Q9: ₵ / m3
C10: Rate 1 | D10: General Firm Service | E10: 25.78 | F10: 1 | G10: 27.621 | H10: 27.0769 | I10: 26.2771 | K10: 11.251 | L10: 1.474 | M10: 2.6982 | Q10: 7.83
C11: Rate 6 | D11: Large Volume General Firm Service | E11: 105.15 | F11: 1 | G11: 25.4811 | H11: 22.933 | I11: 21.7862 | K11: 11.251 | L11: 2.92 | M11: 5.6413 | Q11: 7.83
C12: Rate 11 | D12: Large Volume Seasonal Service | E12: 210.29 | F12: 1 | G12: 15.828 | H12: 15.828 | I12: 15.828 | K12: 11.251 | L12: 0.0352 | M12: 1.8166 | Q12: 7.83
C13: Rate 16 | D13: Contracted Firm Service | E13: 1546.25 | F13: 1 | J13: 105.4686 | L13: 14.2434 | N13: 18.2999 | O13: 11.848 | P13: 11.848 | Q13: 7.83
C14: (A) Rates 1, 6, and 11 all charged on cents / m3 basis. Rate 16 billed on cents / m3 of contracted demand basis
C18: Name for $1 Charge: | D18: Bill 32 Rate

Sheet B1.2 Billing Determinants
C2: ='A1.1 Distributor Information'!C3 -> Name of LDC: EPCOR Natural Gas Limited Partnership
C3: ='A1.1 Distributor Information'!C4 -> OEB Application Number: EB-2021-0216 Exhibit A - 2022 Custom Incentive Application
C5: Billing Determinants
E7: Fixed | F7: Delivery Charge | I7: Delivery Charge
C8: Rate Class | E8: Monthly Base | F8: Tier 1 | G8: Tier 2 | H8: Tier 3 | I8: Contract Demand | J8: Gas Supply
C9: Rate 1 | D9: General Firm Service | E9: 3703 | F9: 3438479 | G9: 3192323 | H9: 78289 | J9: 6709090
C10: Rate 6 | D10: Large Volume General Firm Service | E10: 56 | F10: 465406 | G10: 1108352 | H10: 242837 | J10: 1816595
C11: Rate 11 | D11: Large Volume Seasonal Service | E11: 6 | H11: 1595894 | J11: 1595894
C12: Rate 16 | D12: Contracted Firm Service | E12: 2 | I12: 89716 | J12: 0

Sheet B1.3 Current Rev From Rates
C2: ='A1.1 Distributor Information'!C3 -> Name of LDC: EPCOR Natural Gas Limited Partnership
C3: ='A1.1 Distributor Information'!C4 -> OEB Application Number: EB-2021-0216 Exhibit A - 2022 Custom Incentive Application
C6: Forecasted Revenue from Current Rates
C8: Months / Year | D8: 12
E11: Fixed Monthly | G11: Delivery Charge | J11: Delivery Charge
C12: Rate Class | E12: Base | F12: =OneDollar -> Bill 32 Rate | G12: Tier 1 | H12: Tier 2 | I12: Tier 3 | J12: Contract Demand | K12: Gas Supply | L12: Upstream Recovery Charge | M12: Transportation & Storage Charge | N12: Federal Carbon Charge | O12: Total
M13: (A)
C14: Rate 1 | D14: General Firm Service | E14: ='B1.2 Billing Determinants'!E9*'B1.1 Current Distribution Rates'!E10*$D$8 -> 1145560.08 | F14: ='B1.1 Current Distribution Rates'!F10*'B1.2 Billing Determinants'!E9*$D$8 -> 44436 | G14: ='B1.2 Billing Determinants'!F9*'B1.1 Current Distribution Rates'!G10/100 -> 949742.2846 | H14: ='B1.2 Billing Determinants'!G9*'B1.1 Current Distribution Rates'!H10/100 -> 864382.1064 | I14: ='B1.2 Billing Determinants'!H9*'B1.1 Current Distribution Rates'!I10/100 -> 20572.07882 | J14: ='B1.2 Billing Determinants'!I9*'B1.1 Current Distribution Rates'!J10/100*$D$8 -> 0 | K14: ='B1.2 Billing Determinants'!J9*'B1.1 Current Distribution Rates'!K10/100 -> 754839.7159 | L14: ='B1.1 Current Distribution Rates'!L10*'B1.2 Billing Determinants'!$J9/100 -> 98891.9866 | M14: ='B1.1 Current Distribution Rates'!M10*'B1.2 Billing Determinants'!$J9/100 -> 181024.6664 | N14: ='B1.1 Current Distribution Rates'!Q10*'B1.2 Billing Determinants'!J9/100 -> 525321.747 | O14: =SUM(E14:N14) -> 4584770.666
C15: Rate 6 | D15: Large Volume General Firm Service | E15: ='B1.2 Billing Determinants'!E10*'B1.1 Current Distribution Rates'!E11*$D$8 -> 70660.8 | F15: ='B1.1 Current Distribution Rates'!F11*'B1.2 Billing Determinants'!E10*$D$8 -> 672 | G15: ='B1.2 Billing Determinants'!F10*'B1.1 Current Distribution Rates'!G11/100 -> 118590.5683 | H15: ='B1.2 Billing Determinants'!G10*'B1.1 Current Distribution Rates'!H11/100 -> 254178.3642 | I15: ='B1.2 Billing Determinants'!H10*'B1.1 Current Distribution Rates'!I11/100 -> 52904.95449 | J15: ='B1.2 Billing Determinants'!I10*'B1.1 Current Distribution Rates'!J11/100*$D$8 -> 0 | K15: ='B1.2 Billing Determinants'!J10*'B1.1 Current Distribution Rates'!K11/100 -> 204385.1034 | L15: ='B1.1 Current Distribution Rates'!L11*'B1.2 Billing Determinants'!$J10/100 -> 53044.574 | M15: ='B1.1 Current Distribution Rates'!M11*'B1.2 Billing Determinants'!$J10/100 -> 102479.5737 | N15: ='B1.1 Current Distribution Rates'!Q11*'B1.2 Billing Determinants'!J10/100 -> 142239.3885 | O15: =SUM(E15:N15) -> 999155.3266
C16: Rate 11 | D16: Large Volume Seasonal Service | E16: ='B1.2 Billing Determinants'!E11*'B1.1 Current Distribution Rates'!E12*$D$8 -> 15140.88 | F16: ='B1.1 Current Distribution Rates'!F12*'B1.2 Billing Determinants'!E11*$D$8 -> 72 | G16: ='B1.2 Billing Determinants'!F11*'B1.1 Current Distribution Rates'!G12/100 -> 0 | H16: ='B1.2 Billing Determinants'!G11*'B1.1 Current Distribution Rates'!H12/100 -> 0 | I16: ='B1.2 Billing Determinants'!H11*'B1.1 Current Distribution Rates'!I12/100 -> 252598.1023 | J16: ='B1.2 Billing Determinants'!I11*'B1.1 Current Distribution Rates'!J12/100*$D$8 -> 0 | K16: ='B1.2 Billing Determinants'!J11*'B1.1 Current Distribution Rates'!K12/100 -> 179554.0339 | L16: ='B1.1 Current Distribution Rates'!L12*'B1.2 Billing Determinants'!$J11/100 -> 561.754688 | M16: ='B1.1 Current Distribution Rates'!M12*'B1.2 Billing Determinants'!$J11/100 -> 28991.0104 | N16: ='B1.1 Current Distribution Rates'!Q12*'B1.2 Billing Determinants'!J11/100 -> 124958.5002 | O16: =SUM(E16:N16) -> 601876.2816
C17: Rate 16 | D17: Contracted Firm Service | E17: ='B1.2 Billing Determinants'!E12*'B1.1 Current Distribution Rates'!E13*$D$8 -> 37110 | F17: ='B1.1 Current Distribution Rates'!F13*'B1.2 Billing Determinants'!E12*$D$8 -> 24 | G17: ='B1.2 Billing Determinants'!F12*'B1.1 Current Distribution Rates'!G13/100 -> 0 | H17: ='B1.2 Billing Determinants'!G12*'B1.1 Current Distribution Rates'!H13/100 -> 0 | I17: ='B1.2 Billing Determinants'!H12*'B1.1 Current Distribution Rates'!I13/100 -> 0 | J17: ='B1.2 Billing Determinants'!I12*'B1.1 Current Distribution Rates'!J13/100*$D$8 -> 1135466.51 | K17: ='B1.2 Billing Determinants'!J12*'B1.1 Current Distribution Rates'!K13/100 -> 0 | L17: ='B1.1 Current Distribution Rates'!L13*'B1.2 Billing Determinants'!$I12*$D$8/100 -> 153343.3049 | M17: ='B1.1 Current Distribution Rates'!N13*'B1.2 Billing Determinants'!$I12/100*$D$8 -> 197015.2594 | N17: ='B1.1 Current Distribution Rates'!Q13*'B1.2 Billing Determinants'!I12/100*D8 -> 84297.1536 | O17: =SUM(E17:N17) -> 1607256.228
C18: Total Revenue | E18: =SUM(E14:E17) -> 1268471.76 | F18: 45204 | G18: 1068332.853 | H18: 1118560.471 | I18: 326075.1356 | J18: 1135466.51 | K18: 1138778.853 | L18: 305841.6202 | M18: 509510.5099 | N18: 876816.7893 | O18: 7793058.502
C19: (A) Transportation & Storage for Rates 1, 6, and 11. Transportation only for Rate 16.

Sheet C1.1 Current Rate Riders
C2: ='A1.1 Distributor Information'!C3 -> Name of LDC: EPCOR Natural Gas Limited Partnership
C3: ='A1.1 Distributor Information'!C4 -> OEB Application Number: EB-2021-0216 Exhibit A - 2022 Custom Incentive Application
C5: Current Rate Riders
C7: Description: | E7: Delay in Revenue Recovery Rate Rider
C8: Effective Until: | E8: Dec 31, 2028
C10: Rate 1 | General Firm Service | D10: cents / m3 volume | E10: 1.633 | F10: $/m3
C11: Rate 6 | Large Volume General Firm Service | D11: cents / m3 volume | E11: 0.909 | F11: $/m3
C12: Rate 11 | Large Volume Seasonal Service | D12: cents / m3 volume | E12: 0.5524 | F12: $/m3
C13: Rate 16 | Contracted Firm Service | D13: cents / contracted demand / month | E13: 0.0601 | F13: $/contracted demand m3

Sheet D1.1 Rate 1 Adjustment
C2: ='A1.1 Distributor Information'!C3 -> Name of LDC: EPCOR Natural Gas Limited Partnership
C3: ='A1.1 Distributor Information'!C4 -> OEB Application Number: EB-2021-0216 Exhibit A - 2022 Custom Incentive Application
C5: Rate 1 Incentive Rate Adjustment
C6: =MID(CELL("filename",A1),FIND("]",CELL("filename",A1))+1,255) -> D1.1 Rate 1 Adjustment
C8: Rate 1
C10: GDP-IPI
C11: Less Productivity
C12: Less Stretch Factor
C13: Incentive Rate Adjustment | E13: 0.0191
C14: Months / Year | E14: 12
D16: Unit | E16: Current Rate | F16: Price Cap | G16: Adjusted Rates | H16: Billing Determinants | I16: Revenue
C17: Monthly Base | D17: $/month | E17: ='B1.1 Current Distribution Rates'!E10 -> 25.78 | F17: =$E$13 -> 0.0191 | G17: =E17*(1+F17) -> 26.272398 | H17: =INDEX('B1.2 Billing Determinants'!$E$9:$J$12,MATCH($C$8,'B1.2 Billing Determinants'!$C$9:$C$12,0),MATCH(C17,'B1.2 Billing Determinants'!$E$8:$J$8,0)) -> 3703 | I17: =G17*H17*$E$14 -> 1167440.278
C18: =OneDollar -> Bill 32 Rate | D18: $/month | E18: ='B1.1 Current Distribution Rates'!F10 -> 1 | F18: 0 | G18: =E18*(1+F18) -> 1 | H18: =H17 -> 3703 | I18: =G18*H18*$E$14 -> 44436
C19: Tier 1 | D19: cents / m3 | E19: ='B1.1 Current Distribution Rates'!G10 -> 27.621 | F19: =$E$13 -> 0.0191 | G19: =E19*(1+F19) -> 28.1485611 | H19: =INDEX('B1.2 Billing Determinants'!$E$9:$J$12,MATCH($C$8,'B1.2 Billing Determinants'!$C$9:$C$12,0),MATCH(C19,'B1.2 Billing Determinants'!$E$8:$J$8,0)) -> 3438479 | I19: =G19*H19/100 -> 967882.3622
C20: Tier 2 | D20: cents / m3 | E20: ='B1.1 Current Distribution Rates'!H10 -> 27.0769 | F20: =$E$13 -> 0.0191 | G20: 27.59406879 | H20: =INDEX('B1.2 Billing Determinants'!$E$9:$J$12,MATCH($C$8,'B1.2 Billing Determinants'!$C$9:$C$12,0),MATCH(C20,'B1.2 Billing Determinants'!$E$8:$J$8,0)) -> 3192323 | I20: =G20*H20/100 -> 880891.8046
C21: Tier 3 | D21: cents / m3 | E21: ='B1.1 Current Distribution Rates'!I10 -> 26.2771 | F21: =$E$13 -> 0.0191 | G21: 26.77899261 | H21: =INDEX('B1.2 Billing Determinants'!$E$9:$J$12,MATCH($C$8,'B1.2 Billing Determinants'!$C$9:$C$12,0),MATCH(C21,'B1.2 Billing Determinants'!$E$8:$J$8,0)) -> 78289 | I21: 20965.00552
C22: Contract Demand | D22: cents / m3 | E22: ='B1.1 Current Distribution Rates'!J10 -> 0 | F22: =$E$13 -> 0.0191 | G22: 0 | H22: =INDEX('B1.2 Billing Determinants'!$E$9:$J$12,MATCH($C$8,'B1.2 Billing Determinants'!$C$9:$C$12,0),MATCH(C22,'B1.2 Billing Determinants'!$E$8:$J$8,0)) -> 0 | I22: =G22*H22/100*$E$14 -> 0
C23: Gas Supply | D23: cents / m3 | E23: ='B1.1 Current Distribution Rates'!K10 -> 11.251 | F23: 0 | G23: 11.251 | H23: =INDEX('B1.2 Billing Determinants'!$E$9:$J$12,MATCH($C$8,'B1.2 Billing Determinants'!$C$9:$C$12,0),MATCH(C23,'B1.2 Billing Determinants'!$E$8:$J$8,0)) -> 6709090 | I23: 754839.7159
C24: Upstream Recovery Charge | D24: cents / m3 | E24: ='B1.1 Current Distribution Rates'!L10 -> 1.474 | F24: 0 | G24: 1.474 | H24: =H23 -> 6709090 | I24: 98891.9866
C25: Transportation & Storage Charge | D25: cents / m3 | E25: ='B1.1 Current Distribution Rates'!M10 -> 2.6982 | F25: 0 | G25: 2.6982 | H25: =H24 -> 6709090 | I25: 181024.6664
C26: Federal Carbon Charge | D26: cents / m3 | E26: ='B1.1 Current Distribution Rates'!Q10 -> 7.83 | F26: 0 | G26: 7.83 | H26: =H25 -> 6709090 | I26: =G26*H26/100 -> 525321.747
I27: =SUM(I17:I26) -> 4641693.566

Sheet D1.2 Rate 6 Adjustment
C2: ='A1.1 Distributor Information'!C3 -> Name of LDC: EPCOR Natural Gas Limited Partnership
C3: ='A1.1 Distributor Information'!C4 -> OEB Application Number: EB-2021-0216 Exhibit A - 2022 Custom Incentive Application
C5: Rate 6 Incentive Rate Adjustment
C6: =MID(CELL("filename",A1),FIND("]",CELL("filename",A1))+1,255) -> D1.2 Rate 6 Adjustment
C8: Rate 6
C10: GDP-IPI
C11: Less Productivity
C12: Less Stretch Factor
C13: Incentive Rate Adjustment | E13: ='D1.1 Rate 1 Adjustment'!E13 -> 0.0191
C14: Months / Year | E14: 12
D16: Unit | E16: Current Rate | F16: Price Cap | G16: Adjusted Rates | H16: Billing Determinants | I16: Revenue
C17: Monthly Base | D17: $/month | E17: ='B1.1 Current Distribution Rates'!E11 -> 105.15 | F17: =$E$13 -> 0.0191 | G17: =E17*(1+F17) -> 107.158365 | H17: =INDEX('B1.2 Billing Determinants'!$E$9:$J$12,MATCH($C$8,'B1.2 Billing Determinants'!$C$9:$C$12,0),MATCH(C17,'B1.2 Billing Determinants'!$E$8:$J$8,0)) -> 56 | I17: =G17*H17*12 -> 72010.42128
C18: =OneDollar -> Bill 32 Rate | D18: $/month | E18: ='B1.1 Current Distribution Rates'!F11 -> 1 | F18: 0 | G18: =E18*(1+F18) -> 1 | H18: =H17 -> 56 | I18: =G18*H18*12 -> 672
C19: Tier 1 | D19: cents / m3 | E19: ='B1.1 Current Distribution Rates'!G11 -> 25.4811 | F19: =$E$13 -> 0.0191 | G19: =E19*(1+F19) -> 25.96778901 | H19: =INDEX('B1.2 Billing Determinants'!$E$9:$J$12,MATCH($C$8,'B1.2 Billing Determinants'!$C$9:$C$12,0),MATCH(C19,'B1.2 Billing Determinants'!$E$8:$J$8,0)) -> 465406 | I19: =G19*H19/100 -> 120855.6481
C20: Tier 2 | D20: cents / m3 | E20: ='B1.1 Current Distribution Rates'!H11 -> 22.933 | F20: =$E$13 -> 0.0191 | G20: 23.3710203 | H20: =INDEX('B1.2 Billing Determinants'!$E$9:$J$12,MATCH($C$8,'B1.2 Billing Determinants'!$C$9:$C$12,0),MATCH(C20,'B1.2 Billing Determinants'!$E$8:$J$8,0)) -> 1108352 | I20: =G20*H20/100 -> 259033.1709
C21: Tier 3 | D21: cents / m3 | E21: ='B1.1 Current Distribution Rates'!I11 -> 21.7862 | F21: =$E$13 -> 0.0191 | G21: 22.20231642 | H21: =INDEX('B1.2 Billing Determinants'!$E$9:$J$12,MATCH($C$8,'B1.2 Billing Determinants'!$C$9:$C$12,0),MATCH(C21,'B1.2 Billing Determinants'!$E$8:$J$8,0)) -> 242837 | I21: 53915.43912
C22: Contract Demand | D22: cents / m3 | E22: ='B1.1 Current Distribution Rates'!J11 -> 0 | F22: =$E$13 -> 0.0191 | G22: 0 | H22: =INDEX('B1.2 Billing Determinants'!$E$9:$J$12,MATCH($C$8,'B1.2 Billing Determinants'!$C$9:$C$12,0),MATCH(C22,'B1.2 Billing Determinants'!$E$8:$J$8,0)) -> 0 | I22: =G22*H22/100*12 -> 0
C23: Gas Supply | D23: cents / m3 | E23: ='B1.1 Current Distribution Rates'!K11 -> 11.251 | F23: 0 | G23: 11.251 | H23: =INDEX('B1.2 Billing Determinants'!$E$9:$J$12,MATCH($C$8,'B1.2 Billing Determinants'!$C$9:$C$12,0),MATCH(C23,'B1.2 Billing Determinants'!$E$8:$J$8,0)) -> 1816595 | I23: 204385.1034
C24: Upstream Recovery Charge | D24: cents / m3 | E24: =INDEX('B1.1 Current Distribution Rates'!$E$10:$Q$13,MATCH($C$8,'B1.1 Current Distribution Rates'!$C$10:$C$13,0),MATCH(C24,'B1.1 Current Distribution Rates'!$E$8:$Q$8,0)) -> 2.92 | F24: 0 | G24: 2.92 | H24: =H23 -> 1816595 | I24: 53044.574
C25: Transportation & Storage Charge | D25: cents / m3 | E25: =INDEX('B1.1 Current Distribution Rates'!$E$10:$Q$13,MATCH($C$8,'B1.1 Current Distribution Rates'!$C$10:$C$13,0),MATCH(C25,'B1.1 Current Distribution Rates'!$E$8:$Q$8,0)) -> 5.6413 | F25: ='D1.1 Rate 1 Adjustment'!$F$25 -> 0 | G25: 5.6413 | H25: =H24 -> 1816595 | I25: 102479.5737
C26: Federal Carbon Charge | D26: cents / m3 | E26: =INDEX('B1.1 Current Distribution Rates'!$E$10:$Q$13,MATCH($C$8,'B1.1 Current Distribution Rates'!$C$10:$C$13,0),MATCH(C26,'B1.1 Current Distribution Rates'!$E$8:$Q$8,0)) -> 7.83 | F26: 0 | G26: 7.83 | H26: =H25 -> 1816595 | I26: 142239.3885
I27: =SUM(I17:I26) -> 1008635.319

Sheet D1.3 Rate 11 Adjustment
C2: ='A1.1 Distributor Information'!C3 -> Name of LDC: EPCOR Natural Gas Limited Partnership
C3: ='A1.1 Distributor Information'!C4 -> OEB Application Number: EB-2021-0216 Exhibit A - 2022 Custom Incentive Application
C5: Rate 11 Incentive Rate Adjustment
C6: =MID(CELL("filename",A1),FIND("]",CELL("filename",A1))+1,255) -> D1.3 Rate 11 Adjustment
C8: Rate 11
C10: GDP-IPI
C11: Less Productivity
C12: Less Stretch Factor
C13: Incentive Rate Adjustment | E13: ='D1.1 Rate 1 Adjustment'!E13 -> 0.0191
C14: Months / Year | E14: 12
D16: Unit | E16: Current Rate | F16: Price Cap | G16: Adjusted Rates | H16: Billing Determinants | I16: Revenue
C17: Monthly Base | D17: $/month | E17: =INDEX('B1.1 Current Distribution Rates'!$E$10:$Q$13,MATCH($C$8,'B1.1 Current Distribution Rates'!$C$10:$C$13,0),MATCH(C17,'B1.1 Current Distribution Rates'!$E$8:$Q$8,0)) -> 210.29 | F17: =$E$13 -> 0.0191 | G17: =E17*(1+F17) -> 214.306539 | H17: =INDEX('B1.2 Billing Determinants'!$E$9:$J$12,MATCH($C$8,'B1.2 Billing Determinants'!$C$9:$C$12,0),MATCH(C17,'B1.2 Billing Determinants'!$E$8:$J$8,0)) -> 6 | I17: =G17*H17*12 -> 15430.07081
C18: =OneDollar -> Bill 32 Rate | D18: $/month | E18: =INDEX('B1.1 Current Distribution Rates'!$E$10:$Q$13,MATCH($C$8,'B1.1 Current Distribution Rates'!$C$10:$C$13,0),MATCH(C18,'B1.1 Current Distribution Rates'!$E$8:$Q$8,0)) -> 1 | F18: 0 | G18: =E18*(1+F18) -> 1 | H18: =H17 -> 6 | I18: =G18*H18*12 -> 72
C19: Tier 1 | D19: cents / m3 | E19: =INDEX('B1.1 Current Distribution Rates'!$E$10:$Q$13,MATCH($C$8,'B1.1 Current Distribution Rates'!$C$10:$C$13,0),MATCH(C19,'B1.1 Current Distribution Rates'!$E$8:$Q$8,0)) -> 15.828 | F19: =$E$13 -> 0.0191 | G19: 16.1303148 | H19: =INDEX('B1.2 Billing Determinants'!$E$9:$J$12,MATCH($C$8,'B1.2 Billing Determinants'!$C$9:$C$12,0),MATCH(C19,'B1.2 Billing Determinants'!$E$8:$J$8,0)) -> 0 | I19: =G19*H19/100 -> 0
C20: Tier 2 | D20: cents / m3 | E20: =INDEX('B1.1 Current Distribution Rates'!$E$10:$Q$13,MATCH($C$8,'B1.1 Current Distribution Rates'!$C$10:$C$13,0),MATCH(C20,'B1.1 Current Distribution Rates'!$E$8:$Q$8,0)) -> 15.828 | F20: =$E$13 -> 0.0191 | G20: 16.1303148 | H20: =INDEX('B1.2 Billing Determinants'!$E$9:$J$12,MATCH($C$8,'B1.2 Billing Determinants'!$C$9:$C$12,0),MATCH(C20,'B1.2 Billing Determinants'!$E$8:$J$8,0)) -> 0 | I20: =G20*H20/100 -> 0
C21: Tier 3 | D21: cents / m3 | E21: =INDEX('B1.1 Current Distribution Rates'!$E$10:$Q$13,MATCH($C$8,'B1.1 Current Distribution Rates'!$C$10:$C$13,0),MATCH(C21,'B1.1 Current Distribution Rates'!$E$8:$Q$8,0)) -> 15.828 | F21: =$E$13 -> 0.0191 | G21: 16.1303148 | H21: =INDEX('B1.2 Billing Determinants'!$E$9:$J$12,MATCH($C$8,'B1.2 Billing Determinants'!$C$9:$C$12,0),MATCH(C21,'B1.2 Billing Determinants'!$E$8:$J$8,0)) -> 1595894 | I21: 257422.7261
C22: Contract Demand | D22: cents / m3 | E22: =INDEX('B1.1 Current Distribution Rates'!$E$10:$Q$13,MATCH($C$8,'B1.1 Current Distribution Rates'!$C$10:$C$13,0),MATCH(C22,'B1.1 Current Distribution Rates'!$E$8:$Q$8,0)) -> 0 | F22: =$E$13 -> 0.0191 | G22: 0 | H22: =INDEX('B1.2 Billing Determinants'!$E$9:$J$12,MATCH($C$8,'B1.2 Billing Determinants'!$C$9:$C$12,0),MATCH(C22,'B1.2 Billing Determinants'!$E$8:$J$8,0)) -> 0 | I22: =G22*H22/100*12 -> 0
C23: Gas Supply | D23: cents / m3 | E23: =INDEX('B1.1 Current Distribution Rates'!$E$10:$Q$13,MATCH($C$8,'B1.1 Current Distribution Rates'!$C$10:$C$13,0),MATCH(C23,'B1.1 Current Distribution Rates'!$E$8:$Q$8,0)) -> 11.251 | F23: 0 | G23: 11.251 | H23: =INDEX('B1.2 Billing Determinants'!$E$9:$J$12,MATCH($C$8,'B1.2 Billing Determinants'!$C$9:$C$12,0),MATCH(C23,'B1.2 Billing Determinants'!$E$8:$J$8,0)) -> 1595894 | I23: 179554.0339
C24: Upstream Recovery Charge | D24: cents / m3 | E24: =INDEX('B1.1 Current Distribution Rates'!$E$10:$Q$13,MATCH($C$8,'B1.1 Current Distribution Rates'!$C$10:$C$13,0),MATCH(C24,'B1.1 Current Distribution Rates'!$E$8:$Q$8,0)) -> 0.0352 | F24: 0 | G24: 0.0352 | H24: =H23 -> 1595894 | I24: 561.754688
C25: Transportation & Storage Charge | D25: cents / m3 | E25: =INDEX('B1.1 Current Distribution Rates'!$E$10:$Q$13,MATCH($C$8,'B1.1 Current Distribution Rates'!$C$10:$C$13,0),MATCH(C25,'B1.1 Current Distribution Rates'!$E$8:$Q$8,0)) -> 1.8166 | F25: ='D1.1 Rate 1 Adjustment'!$F$25 -> 0 | G25: 1.8166 | H25: =H24 -> 1595894 | I25: 28991.0104
C26: Federal Carbon Charge | D26: cents / m3 | E26: =INDEX('B1.1 Current Distribution Rates'!$E$10:$Q$13,MATCH($C$8,'B1.1 Current Distribution Rates'!$C$10:$C$13,0),MATCH(C26,'B1.1 Current Distribution Rates'!$E$8:$Q$8,0)) -> 7.83 | F26: 0 | G26: 7.83 | H26: =H25 -> 1595894 | I26: 124958.5002
I27: =SUM(I17:I26) -> 606990.0961

Sheet D1.4 Rate 16 Adjustment
C2: ='A1.1 Distributor Information'!C3 -> Name of LDC: EPCOR Natural Gas Limited Partnership
C3: ='A1.1 Distributor Information'!C4 -> OEB Application Number: EB-2021-0216 Exhibit A - 2022 Custom Incentive Application
C5: Rate 16 Incentive Rate Adjustment
C6: =MID(CELL("filename",A1),FIND("]",CELL("filename",A1))+1,255) -> D1.4 Rate 16 Adjustment
C8: Rate 16
C10: GDP-IPI
C11: Less Productivity
C12: Less Stretch Factor
C13: Incentive Rate Adjustment | E13: ='D1.1 Rate 1 Adjustment'!E13 -> 0.0191
C14: Months / Year | E14: 12
D16: Unit | E16: Current Rate | F16: Price Cap | G16: Adjusted Rates | H16: Billing Determinants | I16: Revenue
C17: Monthly Base | D17: $/month | E17: =INDEX('B1.1 Current Distribution Rates'!$E$10:$Q$13,MATCH($C$8,'B1.1 Current Distribution Rates'!$C$10:$C$13,0),MATCH(C17,'B1.1 Current Distribution Rates'!$E$8:$Q$8,0)) -> 1546.25 | F17: =$E$13 -> 0.0191 | G17: =E17*(1+F17) -> 1575.783375 | H17: =INDEX('B1.2 Billing Determinants'!$E$9:$J$12,MATCH($C$8,'B1.2 Billing Determinants'!$C$9:$C$12,0),MATCH(C17,'B1.2 Billing Determinants'!$E$8:$J$8,0)) -> 2 | I17: =G17*H17*$E$14 -> 37818.801
C18: =OneDollar -> Bill 32 Rate | D18: $/month | E18: =INDEX('B1.1 Current Distribution Rates'!$E$10:$Q$13,MATCH($C$8,'B1.1 Current Distribution Rates'!$C$10:$C$13,0),MATCH(C18,'B1.1 Current Distribution Rates'!$E$8:$Q$8,0)) -> 1 | F18: 0 | G18: =E18*(1+F18) -> 1 | H18: =H17 -> 2 | I18: =G18*H18*$E$14 -> 24
C19: Tier 1 | D19: cents / m3 | E19: =INDEX('B1.1 Current Distribution Rates'!$E$10:$Q$13,MATCH($C$8,'B1.1 Current Distribution Rates'!$C$10:$C$13,0),MATCH(C19,'B1.1 Current Distribution Rates'!$E$8:$Q$8,0)) -> 0 | F19: 0.0191 | G19: 0 | H19: =INDEX('B1.2 Billing Determinants'!$E$9:$J$12,MATCH($C$8,'B1.2 Billing Determinants'!$C$9:$C$12,0),MATCH(C19,'B1.2 Billing Determinants'!$E$8:$J$8,0)) -> 0 | I19: =G19*H19/100 -> 0
C20: Tier 2 | D20: cents / m3 | E20: =INDEX('B1.1 Current Distribution Rates'!$E$10:$Q$13,MATCH($C$8,'B1.1 Current Distribution Rates'!$C$10:$C$13,0),MATCH(C20,'B1.1 Current Distribution Rates'!$E$8:$Q$8,0)) -> 0 | F20: 0.0191 | G20: 0 | H20: =INDEX('B1.2 Billing Determinants'!$E$9:$J$12,MATCH($C$8,'B1.2 Billing Determinants'!$C$9:$C$12,0),MATCH(C20,'B1.2 Billing Determinants'!$E$8:$J$8,0)) -> 0 | I20: =G20*H20/100 -> 0
C21: Tier 3 | D21: cents / m3 | E21: =INDEX('B1.1 Current Distribution Rates'!$E$10:$Q$13,MATCH($C$8,'B1.1 Current Distribution Rates'!$C$10:$C$13,0),MATCH(C21,'B1.1 Current Distribution Rates'!$E$8:$Q$8,0)) -> 0 | F21: 0.0191 | G21: 0 | H21: =INDEX('B1.2 Billing Determinants'!$E$9:$J$12,MATCH($C$8,'B1.2 Billing Determinants'!$C$9:$C$12,0),MATCH(C21,'B1.2 Billing Determinants'!$E$8:$J$8,0)) -> 0 | I21: =G21*H21/100 -> 0
C22: Contract Demand | D22: Cents/contracted demand m3 | E22: =INDEX('B1.1 Current Distribution Rates'!$E$10:$Q$13,MATCH($C$8,'B1.1 Current Distribution Rates'!$C$10:$C$13,0),MATCH(C22,'B1.1 Current Distribution Rates'!$E$8:$Q$8,0)) -> 105.4686 | F22: 0.0191 | G22: 107.4830503 | H22: =INDEX('B1.2 Billing Determinants'!$E$9:$J$12,MATCH($C$8,'B1.2 Billing Determinants'!$C$9:$C$12,0),MATCH(C22,'B1.2 Billing Determinants'!$E$8:$J$8,0)) -> 89716 | I22: =G22*H22/100*$E$14 -> 1157153.92
C23: Gas Supply | D23: cents / m3 | E23: =INDEX('B1.1 Current Distribution Rates'!$E$10:$Q$13,MATCH($C$8,'B1.1 Current Distribution Rates'!$C$10:$C$13,0),MATCH(C23,'B1.1 Current Distribution Rates'!$E$8:$Q$8,0)) -> 0 | F23: 0 | G23: 0 | H23: =INDEX('B1.2 Billing Determinants'!$E$9:$J$12,MATCH($C$8,'B1.2 Billing Determinants'!$C$9:$C$12,0),MATCH(C23,'B1.2 Billing Determinants'!$E$8:$J$8,0)) -> 0 | I23: =G23*H23/100 -> 0
C24: Upstream Recovery Charge | D24: Cents/contracted demand m3 | E24: =INDEX('B1.1 Current Distribution Rates'!$E$10:$Q$13,MATCH($C$8,'B1.1 Current Distribution Rates'!$C$10:$C$13,0),MATCH(C24,'B1.1 Current Distribution Rates'!$E$8:$Q$8,0)) -> 14.2434 | F24: 0 | G24: 14.2434 | H24: =H22 -> 89716 | I24: =G24*H24/100*$E$14 -> 153343.3049
C25: Transportation Charge From Dawn | D25: Cents/contracted demand m3 | E25: =INDEX('B1.1 Current Distribution Rates'!$E$10:$Q$13,MATCH($C$8,'B1.1 Current Distribution Rates'!$C$10:$C$13,0),MATCH(C25,'B1.1 Current Distribution Rates'!$E$8:$Q$8,0)) -> 18.2999 | F25: ='D1.1 Rate 1 Adjustment'!$F$25 -> 0 | G25: 18.2999 | H25: =H24 -> 89716 | I25: =G25*H25/100*$E$14 -> 197015.2594
C26: Transportation Charge From Kirkwall | D26: Cents/contracted demand m3 | E26: =INDEX('B1.1 Current Distribution Rates'!$E$10:$Q$13,MATCH($C$8,'B1.1 Current Distribution Rates'!$C$10:$C$13,0),MATCH(C26,'B1.1 Current Distribution Rates'!$E$8:$Q$8,0)) -> 11.848 | F26: ='D1.1 Rate 1 Adjustment'!$F$25 -> 0 | G26: 11.848 | H26: 0 | I26: =G26*H26/100*$E$14 -> 0
C27: Transportation Charge From Parkway | D27: Cents/contracted demand m3 | E27: =INDEX('B1.1 Current Distribution Rates'!$E$10:$Q$13,MATCH($C$8,'B1.1 Current Distribution Rates'!$C$10:$C$13,0),MATCH(C27,'B1.1 Current Distribution Rates'!$E$8:$Q$8,0)) -> 11.848 | F27: ='D1.1 Rate 1 Adjustment'!$F$25 -> 0 | G27: 11.848 | H27: 0 | I27: =G27*H27/100*$E$14 -> 0
C28: Federal Carbon Charge | D28: Cents/contracted demand m3 | E28: =INDEX('B1.1 Current Distribution Rates'!$E$10:$Q$13,MATCH($C$8,'B1.1 Current Distribution Rates'!$C$10:$C$13,0),MATCH(C28,'B1.1 Current Distribution Rates'!$E$8:$Q$8,0)) -> 7.83 | F28: 0 | G28: 7.83 | H28: =H25 -> 89716 | I28: =G28*H28/100*$E$14 -> 84297.1536
I29: =SUM(I17:I28) -> 1629652.439

Sheet E1.1 Proposed Dist Rates
C2: ='A1.1 Distributor Information'!C3 -> Name of LDC: EPCOR Natural Gas Limited Partnership
C3: ='A1.1 Distributor Information'!C4 -> OEB Application Number: EB-2021-0216 Exhibit A - 2022 Custom Incentive Application
C5: Proposed Distribution Tariff Sheet Rates
C6: =MID(CELL("filename",A1),FIND("]",CELL("filename",A1))+1,255) -> E1.1 Proposed Dist Rates
C8: Rate Class | E8: Monthly Base | F8: =OneDollar -> Bill 32 Rate | G8: Tier 1 | H8: Tier 2 | I8: Tier 3 | J8: Contract Demand | K8: Gas Supply | L8: Upstream Recovery Charge | M8: Transportation & Storage Charge | N8: Transportation Charge From Dawn | O8: Transportation Charge From Kirkwall | P8: Transportation Charge From Parkway | Q8: Federal Carbon Charge
E9: $/month | F9: $/month | G9: ₵ / m3 | H9: ₵ / m3 | I9: ₵ / m3 | J9: ₵/contracted m3 | K9: ₵/m3 | L9: (A) | M9: ₵ / m3 | N9: ₵ /contracted m3 | O9: ₵ /contracted m3 | P9: ₵ /contracted m3 | Q9: ₵ / m3
C10: Rate 1 | D10: General Firm Service | E10: =INDEX('D1.1 Rate 1 Adjustment'!$G$17:$G$26,MATCH(E$8,'D1.1 Rate 1 Adjustment'!$C$17:$C$26,0)) -> 26.272398 | F10: =INDEX('D1.1 Rate 1 Adjustment'!$G$17:$G$26,MATCH(F$8,'D1.1 Rate 1 Adjustment'!$C$17:$C$26,0)) -> 1 | G10: =INDEX('D1.1 Rate 1 Adjustment'!$G$17:$G$26,MATCH(G$8,'D1.1 Rate 1 Adjustment'!$C$17:$C$26,0)) -> 28.1485611 | H10: =INDEX('D1.1 Rate 1 Adjustment'!$G$17:$G$26,MATCH(H$8,'D1.1 Rate 1 Adjustment'!$C$17:$C$26,0)) -> 27.59406879 | I10: =INDEX('D1.1 Rate 1 Adjustment'!$G$17:$G$26,MATCH(I$8,'D1.1 Rate 1 Adjustment'!$C$17:$C$26,0)) -> 26.77899261 | K10: =INDEX('D1.1 Rate 1 Adjustment'!$G$17:$G$26,MATCH(K$8,'D1.1 Rate 1 Adjustment'!$C$17:$C$26,0)) -> 11.251 | L10: =INDEX('D1.1 Rate 1 Adjustment'!$G$17:$G$26,MATCH(L$8,'D1.1 Rate 1 Adjustment'!$C$17:$C$26,0)) -> 1.474 | M10: =INDEX('D1.1 Rate 1 Adjustment'!$G$17:$G$26,MATCH(M$8,'D1.1 Rate 1 Adjustment'!$C$17:$C$26,0)) -> 2.6982 | Q10: =INDEX('D1.1 Rate 1 Adjustment'!$G$17:$G$26,MATCH(Q$8,'D1.1 Rate 1 Adjustment'!$C$17:$C$26,0)) -> 7.83
C11: Rate 6 | D11: Large Volume General Firm Service | E11: =INDEX('D1.2 Rate 6 Adjustment'!$G$17:$G$26,MATCH(E8,'D1.2 Rate 6 Adjustment'!$C$17:$C$26,0)) -> 107.158365 | F11: =INDEX('D1.2 Rate 6 Adjustment'!$G$17:$G$26,MATCH(F8,'D1.2 Rate 6 Adjustment'!$C$17:$C$26,0)) -> 1 | G11: =INDEX('D1.2 Rate 6 Adjustment'!$G$17:$G$26,MATCH(G8,'D1.2 Rate 6 Adjustment'!$C$17:$C$26,0)) -> 25.96778901 | H11: =INDEX('D1.2 Rate 6 Adjustment'!$G$17:$G$26,MATCH(H8,'D1.2 Rate 6 Adjustment'!$C$17:$C$26,0)) -> 23.3710203 | I11: =INDEX('D1.2 Rate 6 Adjustment'!$G$17:$G$26,MATCH(I8,'D1.2 Rate 6 Adjustment'!$C$17:$C$26,0)) -> 22.20231642 | K11: =INDEX('D1.2 Rate 6 Adjustment'!$G$17:$G$26,MATCH(K8,'D1.2 Rate 6 Adjustment'!$C$17:$C$26,0)) -> 11.251 | L11: =INDEX('D1.2 Rate 6 Adjustment'!$G$17:$G$26,MATCH(L8,'D1.2 Rate 6 Adjustment'!$C$17:$C$26,0)) -> 2.92 | M11: =INDEX('D1.2 Rate 6 Adjustment'!$G$17:$G$26,MATCH(M8,'D1.2 Rate 6 Adjustment'!$C$17:$C$26,0)) -> 5.6413 | Q11: =INDEX('D1.2 Rate 6 Adjustment'!$G$17:$G$26,MATCH(Q8,'D1.2 Rate 6 Adjustment'!$C$17:$C$26,0)) -> 7.83
C12: Rate 11 | D12: Large Volume Seasonal Service | E12: =INDEX('D1.3 Rate 11 Adjustment'!$G$17:$G$26,MATCH(E8,'D1.3 Rate 11 Adjustment'!$C$17:$C$26,0)) -> 214.306539 | F12: =INDEX('D1.3 Rate 11 Adjustment'!$G$17:$G$26,MATCH(F8,'D1.3 Rate 11 Adjustment'!$C$17:$C$26,0)) -> 1 | G12: =INDEX('D1.3 Rate 11 Adjustment'!$G$17:$G$26,MATCH(G8,'D1.3 Rate 11 Adjustment'!$C$17:$C$26,0)) -> 16.1303148 | H12: =INDEX('D1.3 Rate 11 Adjustment'!$G$17:$G$26,MATCH(H8,'D1.3 Rate 11 Adjustment'!$C$17:$C$26,0)) -> 16.1303148 | I12: =INDEX('D1.3 Rate 11 Adjustment'!$G$17:$G$26,MATCH(I8,'D1.3 Rate 11 Adjustment'!$C$17:$C$26,0)) -> 16.1303148 | K12: =INDEX('D1.3 Rate 11 Adjustment'!$G$17:$G$26,MATCH(K8,'D1.3 Rate 11 Adjustment'!$C$17:$C$26,0)) -> 11.251 | L12: =INDEX('D1.3 Rate 11 Adjustment'!$G$17:$G$26,MATCH(L8,'D1.3 Rate 11 Adjustment'!$C$17:$C$26,0)) -> 0.0352 | M12: =INDEX('D1.3 Rate 11 Adjustment'!$G$17:$G$26,MATCH(M8,'D1.3 Rate 11 Adjustment'!$C$17:$C$26,0)) -> 1.8166 | Q12: =INDEX('D1.3 Rate 11 Adjustment'!$G$17:$G$26,MATCH(Q8,'D1.3 Rate 11 Adjustment'!$C$17:$C$26,0)) -> 7.83
C13: Rate 16 | D13: Contracted Firm Service | E13: =INDEX('D1.4 Rate 16 Adjustment'!$G$17:$G$28,MATCH(E8,'D1.4 Rate 16 Adjustment'!$C$17:$C$28,0)) -> 1575.783375 | F13: =INDEX('D1.4 Rate 16 Adjustment'!$G$17:$G$28,MATCH(F8,'D1.4 Rate 16 Adjustment'!$C$17:$C$28,0)) -> 1 | J13: =INDEX('D1.4 Rate 16 Adjustment'!$G$17:$G$28,MATCH(J8,'D1.4 Rate 16 Adjustment'!$C$17:$C$28,0)) -> 107.4830503 | L13: =INDEX('D1.4 Rate 16 Adjustment'!$G$17:$G$28,MATCH(L8,'D1.4 Rate 16 Adjustment'!$C$17:$C$28,0)) -> 14.2434 | N13: ='D1.4 Rate 16 Adjustment'!G25 -> 18.2999 | O13: =INDEX('D1.4 Rate 16 Adjustment'!$G$17:$G$28,MATCH(O8,'D1.4 Rate 16 Adjustment'!$C$17:$C$28,0)) -> 11.848 | P13: =INDEX('D1.4 Rate 16 Adjustment'!$G$17:$G$28,MATCH(P8,'D1.4 Rate 16 Adjustment'!$C$17:$C$28,0)) -> 11.848 | Q13: =INDEX('D1.4 Rate 16 Adjustment'!$G$17:$G$28,MATCH(Q8,'D1.4 Rate 16 Adjustment'!$C$17:$C$28,0)) -> 7.83
C14: (A) Rates 1, 6, and 11 all charged on cents / m3 basis. Rate 16 billed on cents / m3 of contracted demand basis

Sheet E1.2 Billing Determinants
C2: ='A1.1 Distributor Information'!C3 -> Name of LDC: EPCOR Natural Gas Limited Partnership
C3: ='A1.1 Distributor Information'!C4 -> OEB Application Number: EB-2021-0216 Exhibit A - 2022 Custom Incentive Application
C5: Billing Determinants
C6: =MID(CELL("filename",A1),FIND("]",CELL("filename",A1))+1,255) -> E1.2 Billing Determinants
C9: Rate Class | D9: Description | E9: Base | F9: Tier 1 | G9: Tier 2 | H9: Tier 3 | I9: Firm Demand | J9: Gas Supply
E10: cx's | F10: m3 | G10: m3 | H10: m3 | I10: Contracted m3 | J10: m3
C11: Rate 1 | D11: General Firm Service | E11: ='B1.2 Billing Determinants'!E9 -> 3703 | F11: ='B1.2 Billing Determinants'!F9 -> 3438479 | G11: ='B1.2 Billing Determinants'!G9 -> 3192323 | H11: ='B1.2 Billing Determinants'!H9 -> 78289 | I11: ='B1.2 Billing Determinants'!I9 -> 0 | J11: ='B1.2 Billing Determinants'!J9 -> 6709090
C12: Rate 6 | D12: Large Volume General Firm Service | E12: ='B1.2 Billing Determinants'!E10 -> 56 | F12: ='B1.2 Billing Determinants'!F10 -> 465406 | G12: ='B1.2 Billing Determinants'!G10 -> 1108352 | H12: ='B1.2 Billing Determinants'!H10 -> 242837 | I12: ='B1.2 Billing Determinants'!I10 -> 0 | J12: ='B1.2 Billing Determinants'!J10 -> 1816595
C13: Rate 11 | D13: Large Volume Seasonal Service | E13: ='B1.2 Billing Determinants'!E11 -> 6 | F13: ='B1.2 Billing Determinants'!F11 -> 0 | G13: ='B1.2 Billing Determinants'!G11 -> 0 | H13: ='B1.2 Billing Determinants'!H11 -> 1595894 | I13: ='B1.2 Billing Determinants'!I11 -> 0 | J13: ='B1.2 Billing Determinants'!J11 -> 1595894
C14: Rate 16 | D14: Contracted Firm Service | E14: ='B1.2 Billing Determinants'!E12 -> 2 | F14: ='B1.2 Billing Determinants'!F12 -> 0 | G14: ='B1.2 Billing Determinants'!G12 -> 0 | H14: ='B1.2 Billing Determinants'!H12 -> 0 | I14: ='B1.2 Billing Determinants'!I12 -> 89716 | J14: ='B1.2 Billing Determinants'!J12 -> 0

Sheet E1.3 Proposed Rev From Rate
C2: ='A1.1 Distributor Information'!C3 -> Name of LDC: EPCOR Natural Gas Limited Partnership
C3: ='A1.1 Distributor Information'!C4 -> OEB Application Number: EB-2021-0216 Exhibit A - 2022 Custom Incentive Application
C5: Proposed Revenue from Rates
C7: Months / Year | D7: 12
C9: Rate Class | E9: Monthly Base | F9: =OneDollar -> Bill 32 Rate | G9: Tier 1 | H9: Tier 2 | I9: Tier 3 | J9: Contracted Demand | K9: Gas Supply | L9: Upstream Recovery Charge | M9: Transportation & Storage Charge | N9: Federal Carbon Charge | O9: Total
M10: (A)
C11: Rate 1 | D11: General Firm Service | E11: ='E1.1 Proposed Dist Rates '!E10*'E1.2 Billing Determinants'!E11*$D$7 -> 1167440.278 | F11: ='E1.1 Proposed Dist Rates '!F10*'E1.2 Billing Determinants'!E11*$D$7 -> 44436 | G11: ='E1.1 Proposed Dist Rates '!G10*'E1.2 Billing Determinants'!F11/100 -> 967882.3622 | H11: ='E1.1 Proposed Dist Rates '!H10*'E1.2 Billing Determinants'!G11/100 -> 880891.8046 | I11: ='E1.1 Proposed Dist Rates '!I10*'E1.2 Billing Determinants'!H11/100 -> 20965.00552 | J11: ='E1.1 Proposed Dist Rates '!J10*'E1.2 Billing Determinants'!I11/100*$D$7 -> 0 | K11: ='E1.1 Proposed Dist Rates '!K10*'E1.2 Billing Determinants'!J11/100 -> 754839.7159 | L11: ='E1.1 Proposed Dist Rates '!L10*'E1.2 Billing Determinants'!$J11/100 -> 98891.9866 | M11: ='E1.1 Proposed Dist Rates '!M10*'E1.2 Billing Determinants'!$J11/100 -> 181024.6664 | N11: ='E1.1 Proposed Dist Rates '!Q10*'E1.2 Billing Determinants'!J11/100 -> 525321.747 | O11: =SUM(E11:N11) -> 4641693.566
C12: Rate 6 | D12: Large Volume General Firm Service | E12: ='E1.1 Proposed Dist Rates '!E11*'E1.2 Billing Determinants'!E12*$D$7 -> 72010.42128 | F12: ='E1.1 Proposed Dist Rates '!F11*'E1.2 Billing Determinants'!E12*$D$7 -> 672 | G12: ='E1.1 Proposed Dist Rates '!G11*'E1.2 Billing Determinants'!F12/100 -> 120855.6481 | H12: ='E1.1 Proposed Dist Rates '!H11*'E1.2 Billing Determinants'!G12/100 -> 259033.1709 | I12: ='E1.1 Proposed Dist Rates '!I11*'E1.2 Billing Determinants'!H12/100 -> 53915.43912 | J12: ='E1.1 Proposed Dist Rates '!J11*'E1.2 Billing Determinants'!I12/100*$D$7 -> 0 | K12: ='E1.1 Proposed Dist Rates '!K11*'E1.2 Billing Determinants'!J12/100 -> 204385.1034 | L12: ='E1.1 Proposed Dist Rates '!L11*'E1.2 Billing Determinants'!$J12/100 -> 53044.574 | M12: ='E1.1 Proposed Dist Rates '!M11*'E1.2 Billing Determinants'!$J12/100 -> 102479.5737 | N12: ='E1.1 Proposed Dist Rates '!Q11*'E1.2 Billing Determinants'!J12/100 -> 142239.3885 | O12: =SUM(E12:N12) -> 1008635.319
C13: Rate 11 | D13: Large Volume Seasonal Service | E13: ='E1.1 Proposed Dist Rates '!E12*'E1.2 Billing Determinants'!E13*$D$7 -> 15430.07081 | F13: ='E1.1 Proposed Dist Rates '!F12*'E1.2 Billing Determinants'!E13*$D$7 -> 72 | G13: ='E1.1 Proposed Dist Rates '!G12*'E1.2 Billing Determinants'!F13/100 -> 0 | H13: ='E1.1 Proposed Dist Rates '!H12*'E1.2 Billing Determinants'!G13/100 -> 0 | I13: ='E1.1 Proposed Dist Rates '!I12*'E1.2 Billing Determinants'!H13/100 -> 257422.7261 | J13: ='E1.1 Proposed Dist Rates '!J12*'E1.2 Billing Determinants'!I13/100*$D$7 -> 0 | K13: ='E1.1 Proposed Dist Rates '!K12*'E1.2 Billing Determinants'!J13/100 -> 179554.0339 | L13: ='E1.1 Proposed Dist Rates '!L12*'E1.2 Billing Determinants'!$J13/100 -> 561.754688 | M13: ='E1.1 Proposed Dist Rates '!M12*'E1.2 Billing Determinants'!$J13/100 -> 28991.0104 | N13: ='E1.1 Proposed Dist Rates '!Q12*'E1.2 Billing Determinants'!J13/100 -> 124958.5002 | O13: =SUM(E13:N13) -> 606990.0961
C14: Rate 16 | D14: Contracted Firm Service | E14: ='E1.1 Proposed Dist Rates '!E13*'E1.2 Billing Determinants'!E14*$D$7 -> 37818.801 | F14: ='E1.1 Proposed Dist Rates '!F13*'E1.2 Billing Determinants'!E14*$D$7 -> 24 | G14: ='E1.1 Proposed Dist Rates '!G13*'E1.2 Billing Determinants'!F14/100 -> 0 | H14: ='E1.1 Proposed Dist Rates '!H13*'E1.2 Billing Determinants'!G14/100 -> 0 | I14: ='E1.1 Proposed Dist Rates '!I13*'E1.2 Billing Determinants'!H14/100 -> 0 | J14: ='E1.1 Proposed Dist Rates '!J13*'E1.2 Billing Determinants'!I14/100*$D$7 -> 1157153.92 | K14: ='E1.1 Proposed Dist Rates '!K13*'E1.2 Billing Determinants'!J14/100 -> 0 | L14: ='E1.1 Proposed Dist Rates '!L13*'E1.2 Billing Determinants'!$I14/100*$D$7 -> 153343.3049 | M14: ='E1.1 Proposed Dist Rates '!N13*'E1.2 Billing Determinants'!$I14/100*$D$7 -> 197015.2594 | N14: ='E1.1 Proposed Dist Rates '!Q13*'E1.2 Billing Determinants'!I14/100*$D$7 -> 84297.1536 | O14: =SUM(E14:N14) -> 1629652.439
C15: (A) Transportation & Storage for Rates 1, 6, and 11. Transportation only (no seasonal storage) for Rate 16 from Dawn. | N15: Proposed Revenue | O15: =SUM(O11:O14) -> 7886971.42
N16: Current Revenue | O16: ='B1.3 Current Rev From Rates'!O18 -> 7793058.502
N17: Change | O17: =O15-O16 -> 93912.91853
N18: % Change | O18: =O17/O16 -> 0.01205084223

Sheet F1.3 Rate Riders
C2: ='A1.1 Distributor Information'!C3 -> Name of LDC: EPCOR Natural Gas Limited Partnership
C3: ='A1.1 Distributor Information'!C4 -> OEB Application Number: EB-2021-0216 Exhibit A - 2022 Custom Incentive Application
C4: F1.3 Rate Riders
C6: Delay in Revenue Recovery Rate Rider
E7: Delay in Revenue Recovery Rate Rider
C9: Rate 1 | General Firm Service | E9: 1.633 | F9: Cents/m3
C10: Rate 6 | Large Volume General Firm Service | E10: 0.909 | F10: Cents/m3
C11: Rate 11 | Large Volume Seasonal Service | E11: 0.5524 | F11: Cents/m3
C12: Rate 16 | Contracted Firm Service | E12: 0.0601 | F12: Cents/contracted demand m3
C15: Energy Content Variance Account (ECVA)
E16: ECVA Rate Rider
C18: Rate 1 | General Firm Service | E18: 0.1403 | F18: Cents/m3
C19: Rate 6 | Large Volume General Firm Service | E19: 0.1403 | F19: Cents/m3
C20: Rate 11 | Large Volume Seasonal Service | E20: 0.1403 | F20: Cents/m3
C21: Rate 16 | Contracted Firm Service | E21: 0 | F21: Cents/contracted demand m3
C24: Contribution in Aid of Construction Variance Account (CIACVA)
E25: CIACVA Rate Rider
C27: Rate 1 | General Firm Service | E27: 0.5577 | F27: Cents/m3
C28: Rate 6 | Large Volume General Firm Service | E28: 0.7091 | F28: Cents/m3
C29: Rate 11 | Large Volume Seasonal Service | E29: 0.1153 | F29: Cents/m3
C30: Rate 16 | Contracted Firm Service | E30: 0.8547 | F30: Cents/contracted demand m3
C33: External Funding Variance Account (EFVA)
E34: EFVA Rate Rider
C36: Rate 1 | General Firm Service | E36: 0.5197 | F36: Cents/m3
C37: Rate 6 | Large Volume General Firm Service | E37: 0.6608 | F37: Cents/m3
C38: Rate 11 | Large Volume Seasonal Service | E38: 0.1075 | F38: Cents/m3
C39: Rate 16 | Contracted Firm Service | E39: 0.7964 | F39: Cents/contracted demand m3

Sheet G1.1 Rate 1 Bill Impact
C2: ='A1.1 Distributor Information'!C3 -> Name of LDC: EPCOR Natural Gas Limited Partnership
C3: ='A1.1 Distributor Information'!C4 -> OEB Application Number: EB-2021-0216 Exhibit A - 2022 Custom Incentive Application
C5: Rate 1 Delivery Bill Impact
C6: G1.1 Rate 1 Bill Impact
C8: Rate 1
C10: Rate 1 - Existing Residential | E10: Units | F10: Current Rate | H10: Proposed Rate
C12: Customer | E12: $/month | F12: =INDEX('B1.1 Current Distribution Rates'!$E$10:$Q$13,MATCH($C$8,'B1.1 Current Distribution Rates'!$C$10:$C$13,0),COUNTA('G1.1 Rate 1 Bill Impact'!$C$12:C12)) -> 25.78 | H12: =INDEX('E1.1 Proposed Dist Rates '!$E$10:$Q$13,MATCH($C$8,'E1.1 Proposed Dist Rates '!$C$10:$C$13,0),COUNTA($C$12:C12)) -> 26.272398
C13: =OneDollar -> Bill 32 Rate | E13: $/month | F13: =INDEX('B1.1 Current Distribution Rates'!$E$10:$Q$13,MATCH($C$8,'B1.1 Current Distribution Rates'!$C$10:$C$13,0),COUNTA('G1.1 Rate 1 Bill Impact'!$C$12:C13)) -> 1 | H13: =INDEX('E1.1 Proposed Dist Rates '!$E$10:$Q$13,MATCH($C$8,'E1.1 Proposed Dist Rates '!$C$10:$C$13,0),COUNTA($C$12:C13)) -> 1
C14: First 100 m3 | E14: ₵/m3 | F14: =INDEX('B1.1 Current Distribution Rates'!$E$10:$Q$13,MATCH($C$8,'B1.1 Current Distribution Rates'!$C$10:$C$13,0),COUNTA('G1.1 Rate 1 Bill Impact'!$C$12:C14)) -> 27.621 | H14: =INDEX('E1.1 Proposed Dist Rates '!$E$10:$Q$13,MATCH($C$8,'E1.1 Proposed Dist Rates '!$C$10:$C$13,0),COUNTA($C$12:C14)) -> 28.1485611
C15: Next 400 m3 | E15: ₵/m3 | F15: =INDEX('B1.1 Current Distribution Rates'!$E$10:$Q$13,MATCH($C$8,'B1.1 Current Distribution Rates'!$C$10:$C$13,0),COUNTA('G1.1 Rate 1 Bill Impact'!$C$12:C15)) -> 27.0769 | H15: =INDEX('E1.1 Proposed Dist Rates '!$E$10:$Q$13,MATCH($C$8,'E1.1 Proposed Dist Rates '!$C$10:$C$13,0),COUNTA($C$12:C15)) -> 27.59406879
C16: GT 500m3 | E16: ₵/m3 | F16: =INDEX('B1.1 Current Distribution Rates'!$E$10:$Q$13,MATCH($C$8,'B1.1 Current Distribution Rates'!$C$10:$C$13,0),COUNTA('G1.1 Rate 1 Bill Impact'!$C$12:C16)) -> 26.2771 | H16: =INDEX('E1.1 Proposed Dist Rates '!$E$10:$Q$13,MATCH($C$8,'E1.1 Proposed Dist Rates '!$C$10:$C$13,0),COUNTA($C$12:C16)) -> 26.77899261
C17: Contracted Demand | E17: ₵ / contracted m3 | F17: =INDEX('B1.1 Current Distribution Rates'!$E$10:$Q$13,MATCH($C$8,'B1.1 Current Distribution Rates'!$C$10:$C$13,0),COUNTA('G1.1 Rate 1 Bill Impact'!$C$12:C17)) -> 0 | H17: =INDEX('E1.1 Proposed Dist Rates '!$E$10:$Q$13,MATCH($C$8,'E1.1 Proposed Dist Rates '!$C$10:$C$13,0),COUNTA($C$12:C17)) -> 0
C18: Gas Supply | E18: ₵/m3 | F18: =INDEX('B1.1 Current Distribution Rates'!$E$10:$Q$13,MATCH($C$8,'B1.1 Current Distribution Rates'!$C$10:$C$13,0),COUNTA('G1.1 Rate 1 Bill Impact'!$C$12:C18)) -> 11.251 | H18: =INDEX('E1.1 Proposed Dist Rates '!$E$10:$Q$13,MATCH($C$8,'E1.1 Proposed Dist Rates '!$C$10:$C$13,0),COUNTA($C$12:C18)) -> 11.251
C19: Upstream Recovery Charge | E19: $/m3 | F19: =INDEX('B1.1 Current Distribution Rates'!$E$10:$Q$13,MATCH($C$8,'B1.1 Current Distribution Rates'!$C$10:$C$13,0),COUNTA('G1.1 Rate 1 Bill Impact'!$C$12:C19)) -> 1.474 | H19: =INDEX('E1.1 Proposed Dist Rates '!$E$10:$Q$13,MATCH($C$8,'E1.1 Proposed Dist Rates '!$C$10:$C$13,0),COUNTA($C$12:C19)) -> 1.474
C20: Transportation & Storage Charge | E20: ₵/m3 | F20: =INDEX('B1.1 Current Distribution Rates'!$E$10:$Q$13,MATCH($C$8,'B1.1 Current Distribution Rates'!$C$10:$C$13,0),COUNTA('G1.1 Rate 1 Bill Impact'!$C$12:C20)) -> 2.6982 | H20: =INDEX('E1.1 Proposed Dist Rates '!$E$10:$Q$13,MATCH($C$8,'E1.1 Proposed Dist Rates '!$C$10:$C$13,0),COUNTA($C$12:C20)) -> 2.6982
C21: Federal Carbon Charge | E21: ₵/m3 | F21: ='B1.1 Current Distribution Rates'!Q10 -> 7.83 | H21: ='E1.1 Proposed Dist Rates '!Q10 -> 7.83
C23: Rate Riders
C24: Delay in Revenue Recovery Rate Rider | E24: ₵/m3 | F24: ='C1.1 Current Rate Riders'!E10 -> 1.633 | H24: ='F1.3 Rate Riders'!E9 -> 1.633
C25: ='F1.3 Rate Riders'!$E$16 -> ECVA Rate Rider | E25: ₵/m3 | F25: 0 | H25: ='F1.3 Rate Riders'!E18 -> 0.1403
C26: ='F1.3 Rate Riders'!$E$25 -> CIACVA Rate Rider | E26: ₵/m3 | F26: 0 | H26: ='F1.3 Rate Riders'!E27 -> 0.5577
C27: ='F1.3 Rate Riders'!$E$34 -> EFVA Rate Rider | E27: ₵/m3 | F27: 0 | H27: ='F1.3 Rate Riders'!E36 -> 0.5197
C29: Delivery | E29: Metric | F29: Current Rate | H29: Proposed Rate | J29: Change $ | L29: Change %
C30: Customer | E30: 12 | F30: =F12*$E30 -> 309.36 | H30: =H12*$E30 -> 315.268776 | J30: =H30-F30 -> 5.908776 | L30: =J30/F30 -> 0.0191
C31: =OneDollar -> Bill 32 Rate | E31: 12 | F31: =F13*$E31 -> 12 | H31: =H13*$E31 -> 12 | J31: =H31-F31 -> 0 | L31: =J31/F31 -> 0
C32: First 100 m3 | E32: 1001.316053 | F32: =F14*$E32/100 -> 276.5735069 | H32: =H14*$E32/100 -> 281.8560609 | J32: =H32-F32 -> 5.282553982 | L32: =J32/F32 -> 0.0191
C33: Next 400 m3 | E33: 1147.683947 | F33: 310.7572347 | H33: 316.6926979 | J33: 5.935463183 | L33: 0.0191
C34: GT 500m3 | E34: 0 | F34: 0 | H34: 0 | J34: 0
C35: Contracted Demand | E35: 0 | F35: 0 | H35: 0 | J35: 0
C36: Gas Supply | E36: =SUM(E32:E35) -> 2149 | F36: 241.78399 | H36: 241.78399 | J36: 0 | L36: 0
C37: Upstream Recovery Charge | E37: =E36 -> 2149 | F37: 31.67626 | H37: 31.67626 | J37: 0 | L37: 0
C38: Transportation & Storage Charge | E38: =E37 -> 2149 | F38: 57.984318 | H38: 57.984318 | J38: 0 | L38: 0
C39: Federal Carbon Charge | E39: =E36 -> 2149 | F39: 168.2667 | H39: 168.2667 | J39: 0 | L39: 0
C40: Total Delivery | F40: =SUM(F30:F39) -> 1408.40201 | H40: =SUM(H30:H39) -> 1425.528803 | J40: =SUM(J30:J39) -> 17.12679317 | L40: =J40/F40 -> 0.01216044357
C42: Rate Riders | E42: Metric | F42: Current Rate | H42: Proposed Rate | J42: Change $ | L42: Change %
C43: Delay in Revenue Recovery Rate Rider | E43: =E36 -> 2149 | F43: =$E43*F24/100 -> 35.09317 | H43: =$E43*H24/100 -> 35.09317 | J43: =H43-F43 -> 0 | L43: =J43/F43 -> 0
C44: ='F1.3 Rate Riders'!$E$16 -> ECVA Rate Rider | E44: =E43 -> 2149 | F44: =$E44*F25/100 -> 0 | H44: =$E44*H25/100 -> 3.015047 | J44: =H44-F44 -> 3.015047 | L44: =J44/F44 -> 
C45: ='F1.3 Rate Riders'!$E$25 -> CIACVA Rate Rider | E45: =E44 -> 2149 | F45: 0 | H45: 11.984973 | J45: 11.984973
C46: ='F1.3 Rate Riders'!$E$34 -> EFVA Rate Rider | E46: 2149 | F46: 0 | H46: 11.168353 | J46: 11.168353
C47: Total Rate Riders | F47: =SUM(F43:F46) -> 35.09317 | H47: =SUM(H43:H46) -> 61.261543 | J47: =SUM(J43:J46) -> 26.168373 | L47: =J47/F47 -> 0.7456827924
C49: Total Bill Impact | F49: =F40+F47 -> 1443.49518 | H49: =H40+H47 -> 1486.790346 | J49: =J40+J47 -> 43.29516617 | L49: =J49/F49 -> 0.02999328766
C52: Rate 1 - New Residential | E52: Units | F52: Current Rate | H52: Proposed Rate
C54: Customer | E54: $/month | F54: =F12 -> 25.78 | H54: =H12 -> 26.272398
C55: =OneDollar -> Bill 32 Rate | E55: $/month | F55: 1 | H55: 1
C56: First 100 m3 | E56: ₵/m3 | F56: 27.621 | H56: 28.1485611
C57: Next 400 m3 | E57: ₵/m3 | F57: 27.0769 | H57: 27.59406879
C58: GT 500m3 | E58: ₵/m3 | F58: 26.2771 | H58: 26.77899261
C59: Contracted Demand | E59: ₵ / contracted m3 | F59: 0 | H59: 0
C60: Gas Supply | E60: ₵/m3 | F60: 11.251 | H60: 11.251
C61: Upstream Recovery Charge | E61: ₵/m3 | F61: 1.474 | H61: 1.474
C62: Transportation & Storage Charge | E62: ₵/m3 | F62: 2.6982 | H62: 2.6982
C63: Federal Carbon Charge | E63: ₵/m3 | F63: 7.83 | H63: 7.83
C65: Rate Riders
C66: Delay in Revenue Recovery Rate Rider | E66: ₵/m3 | F66: =F24 -> 1.633 | H66: =H24 -> 1.633
C67: ='F1.3 Rate Riders'!$E$16 -> ECVA Rate Rider | E67: ₵/m3 | F67: =F25 -> 0 | H67: =H25 -> 0.1403
C68: ='F1.3 Rate Riders'!$E$25 -> CIACVA Rate Rider | E68: ₵/m3 | F68: 0 | H68: 0.5577
C69: ='F1.3 Rate Riders'!$E$34 -> EFVA Rate Rider | E69: ₵/m3 | F69: 0 | H69: 0.5197
C71: Delivery | E71: Metric | F71: Current Rate | H71: Proposed Rate | J71: Change $ | L71: Change %
C72: Customer | E72: 12 | F72: =F54*$E72 -> 309.36 | H72: =H54*$E72 -> 315.268776 | J72: =H72-F72 -> 5.908776 | L72: =J72/F72 -> 0.0191
C73: =OneDollar -> Bill 32 Rate | E73: =E72 -> 12 | F73: =F55*$E73 -> 12 | H73: =H55*$E73 -> 12 | J73: =H73-F73 -> 0 | L73: =J73/F73 -> 0
C74: First 100 m3 | E74: 993.1296044 | F74: =F56*$E74/100 -> 274.312328 | H74: =H56*$E74/100 -> 279.5516935 | J74: =H74-F74 -> 5.239365465 | L74: =J74/F74 -> 0.0191
C75: Next 400 m3 | E75: 1072.870396 | F75: 290.5000442 | H75: 296.048595 | J75: 5.548550843 | L75: 0.0191
C76: GT 500m3 | E76: 0 | F76: 0 | H76: 0 | J76: 0
C77: Contracted Demand | E77: 0 | F77: 0 | H77: 0 | J77: 0
C78: Gas Supply | E78: =SUM(E74:E77) -> 2066 | F78: 232.44566 | H78: 232.44566 | J78: 0 | L78: 0
C79: Upstream Recovery Charge | E79: =E78 -> 2066 | F79: 30.45284 | H79: 30.45284 | J79: 0 | L79: 0
C80: Transportation & Storage Charge | E80: =E79 -> 2066 | F80: 55.744812 | H80: 55.744812 | J80: 0 | L80: 0
C81: Federal Carbon Charge | E81: =E78 -> 2066 | F81: 161.7678 | H81: 161.7678 | J81: 0 | L81: 0
C82: Total Delivery | F82: =SUM(F72:F81) -> 1366.583484 | H82: =SUM(H72:H81) -> 1383.280176 | J82: =SUM(J72:J81) -> 16.69669231 | L82: =J82/F82 -> 0.01221783557
C84: Rate Riders | E84: Metric | F84: Current Rate | H84: Proposed Rate | J84: Change $ | L84: Change %
C85: Delay in Revenue Recovery Rate Rider | E85: =E78 -> 2066 | F85: =$E85*F66/100 -> 33.73778 | H85: =$E85*H66/100 -> 33.73778 | J85: =H85-F85 -> 0 | L85: =J85/F85 -> 0
C86: ='F1.3 Rate Riders'!$E$16 -> ECVA Rate Rider | E86: =E85 -> 2066 | F86: =$E86*F67/100 -> 0 | H86: =$E86*H67/100 -> 2.898598 | J86: =H86-F86 -> 2.898598 | L86: =J86/F86 -> 
C87: ='F1.3 Rate Riders'!$E$25 -> CIACVA Rate Rider | E87: =E86 -> 2066 | F87: 0 | H87: 11.522082 | J87: 11.522082
C88: ='F1.3 Rate Riders'!$E$34 -> EFVA Rate Rider | E88: 2066 | F88: 0 | H88: 10.737002 | J88: 10.737002
C89: Total Rate Riders | F89: =SUM(F85:F88) -> 33.73778 | H89: =SUM(H85:H88) -> 58.895462 | J89: =SUM(J85:J88) -> 25.157682 | L89: =J89/F89 -> 0.7456827924
C91: Total Bill Impact | F91: =F82+F89 -> 1400.321264 | H91: =H82+H89 -> 1442.175638 | J91: =J82+J89 -> 41.85437431 | L91: =J91/F91 -> 0.02988912286
C93: Rate 1 - Small Commercial | E93: Units | F93: Current Rate | H93: Proposed Rate
C95: Customer | E95: $/month | F95: =F54 -> 25.78 | H95: =H54 -> 26.272398
C96: =OneDollar -> Bill 32 Rate | E96: $/month | F96: 1 | H96: 1
C97: First 100 m3 | E97: ₵/m3 | F97: 27.621 | H97: 28.1485611
C98: Next 400 m3 | E98: ₵/m3 | F98: 27.0769 | H98: 27.59406879
C99: GT 500m3 | E99: ₵/m3 | F99: 26.2771 | H99: 26.77899261
C100: Contracted Demand | E100: ₵ / contracted m3 | F100: 0 | H100: 0
C101: Gas Supply | E101: ₵/m3 | F101: 11.251 | H101: 11.251
C102: Upstream Recovery Charge | E102: ₵/m3 | F102: 1.474 | H102: 1.474
C103: Transportation & Storage Charge | E103: ₵/m3 | F103: 2.6982 | H103: 2.6982
C104: Federal Carbon Charge | E104: ₵/m3 | F104: 7.83 | H104: 7.83
C106: Rate Riders
C107: Delay in Revenue Recovery Rate Rider | E107: ₵/m3 | F107: =F66 -> 1.633 | H107: =H66 -> 1.633
C108: ='F1.3 Rate Riders'!$E$16 -> ECVA Rate Rider | E108: ₵/m4 | F108: =F67 -> 0 | H108: =H67 -> 0.1403
C109: ='F1.3 Rate Riders'!$E$25 -> CIACVA Rate Rider | E109: ₵/m5 | F109: 0 | H109: 0.5577
C110: ='F1.3 Rate Riders'!$E$34 -> EFVA Rate Rider | E110: ₵/m6 | F110: 0 | H110: 0.5197
C112: Delivery | E112: Metric | F112: Current Rate | H112: Proposed Rate | J112: Change $ | L112: Change %
C113: Customer | E113: 12 | F113: =F95*$E113 -> 309.36 | H113: =H95*$E113 -> 315.268776 | J113: =H113-F113 -> 5.908776 | L113: =J113/F113 -> 0.0191
C114: =OneDollar -> Bill 32 Rate | E114: =E113 -> 12 | F114: =F96*$E114 -> 12 | H114: =H96*$E114 -> 12 | J114: =H114-F114 -> 0 | L114: =J114/F114 -> 0
C115: First 100 m3 | E115: 1198.170987 | F115: =F97*$E115/100 -> 330.9468083 | H115: =H97*$E115/100 -> 337.2678923 | J115: =H115-F115 -> 6.321084038 | L115: =J115/F115 -> 0.0191
C116: Next 400 m3 | E116: 2475.004093 | F116: 670.1543832 | H116: 682.9543319 | J116: 12.79994872 | L116: 0.0191
C117: GT 500m3 | E117: 1019.82492 | F117: 267.9804142 | H117: 273.0988401 | J117: 5.118425911 | L117: 0.0191
C118: Contracted Demand | E118: 0 | F118: 0 | H118: 0 | J118: 0
C119: Gas Supply | E119: =SUM(E115:E118) -> 4693 | F119: 528.00943 | H119: 528.00943 | J119: 0 | L119: 0
C120: Upstream Recovery Charge | E120: =E119 -> 4693 | F120: 69.17482 | H120: 69.17482 | J120: 0 | L120: 0
C121: Transportation & Storage Charge | E121: =E120 -> 4693 | F121: 126.626526 | H121: 126.626526 | J121: 0 | L121: 0
C122: Federal Carbon Charge | E122: =E119 -> 4693 | F122: 367.4619 | H122: 367.4619 | J122: 0 | L122: 0
C123: Total Delivery | F123: =SUM(F113:F122) -> 2681.714282 | H123: =SUM(H113:H122) -> 2711.862516 | J123: =SUM(J113:J122) -> 30.14823467 | L123: =J123/F123 -> 0.01124215017
C125: Rate Riders | E125: Metric | F125: Current Rate | H125: Proposed Rate | J125: Change $ | L125: Change %
C126: Delay in Revenue Recovery Rate Rider | E126: =E119 -> 4693 | F126: =$E126*F107/100 -> 76.63669 | H126: =$E126*H107/100 -> 76.63669 | J126: =H126-F126 -> 0 | L126: =J126/F126 -> 0
C127: ='F1.3 Rate Riders'!$E$16 -> ECVA Rate Rider | E127: =E126 -> 4693 | F127: =$E127*F108/100 -> 0 | H127: =$E127*H108/100 -> 6.584279 | J127: =H127-F127 -> 6.584279 | L127: =J127/F127 -> 
C128: ='F1.3 Rate Riders'!$E$25 -> CIACVA Rate Rider | E128: =E127 -> 4693 | F128: 0 | H128: 26.172861 | J128: 26.172861
C129: ='F1.3 Rate Riders'!$E$34 -> EFVA Rate Rider | E129: 4693 | F129: 0 | H129: 24.389521 | J129: 24.389521
C130: Total Rate Riders | F130: =SUM(F126:F129) -> 76.63669 | H130: =SUM(H126:H129) -> 133.783351 | J130: =SUM(J126:J129) -> 57.146661 | L130: =J130/F130 -> 0.7456827924
C132: Total Bill Impact | F132: =F123+F130 -> 2758.350972 | H132: =H123+H130 -> 2845.645867 | J132: =J123+J130 -> 87.29489567 | L132: =J132/F132 -> 0.03164749394
C134: Rate 1 - Small Agricultural | E134: Units | F134: Current Rate | H134: Proposed Rate
C136: Customer | E136: $/month | F136: =F95 -> 25.78 | H136: =H95 -> 26.272398
C137: =OneDollar -> Bill 32 Rate | E137: $/month | F137: 1 | H137: 1
C138: First 100 m3 | E138: ₵/m3 | F138: =F97 -> 27.621 | H138: =H97 -> 28.1485611
C139: Next 400 m3 | E139: ₵/m3 | F139: 27.0769 | H139: 27.59406879
C140: GT 500m3 | E140: ₵/m3 | F140: 26.2771 | H140: 26.77899261
C141: Contracted Demand | E141: ₵ / contracted m3 | F141: 0 | H141: 0
C142: Gas Supply | E142: ₵/m3 | F142: 11.251 | H142: 11.251
C143: Upstream Recovery Charge | E143: ₵/m3 | F143: 1.474 | H143: 1.474
C144: Transportation & Storage Charge | E144: ₵/m3 | F144: 2.6982 | H144: 2.6982
C145: Federal Carbon Charge | E145: ₵/m3 | F145: 7.83 | H145: 7.83
C147: Rate Riders
C148: Delay in Revenue Recovery Rate Rider | E148: ₵/m3 | F148: =F107 -> 1.633 | H148: =H107 -> 1.633
C149: ='F1.3 Rate Riders'!$E$16 -> ECVA Rate Rider | E149: ₵/m4 | F149: =F108 -> 0 | H149: =H108 -> 0.1403
C150: ='F1.3 Rate Riders'!$E$25 -> CIACVA Rate Rider | E150: ₵/m5 | F150: 0 | H150: 0.5577
C151: ='F1.3 Rate Riders'!$E$34 -> EFVA Rate Rider | E151: ₵/m6 | F151: 0 | H151: 0.5197
C153: Delivery | E153: Metric | F153: Current Rate | H153: Proposed Rate | J153: Change $ | L153: Change %
C154: Customer | E154: 12 | F154: =F136*$E154 -> 309.36 | H154: =H136*$E154 -> 315.268776 | J154: =H154-F154 -> 5.908776 | L154: =J154/F154 -> 0.0191
C155: =OneDollar -> Bill 32 Rate | E155: =E154 -> 12 | F155: =F137*$E155 -> 12 | H155: =H137*$E155 -> 12 | J155: =H155-F155 -> 0 | L155: =J155/F155 -> 0
C156: First 100 m3 | E156: 1198.735789 | F156: =F138*$E156/100 -> 331.1028123 | H156: =H138*$E156/100 -> 337.426876 | J156: =H156-F156 -> 6.324063715 | L156: =J156/F156 -> 0.0191
C157: Next 400 m3 | E157: 2484.065484 | F157: 672.6079271 | H157: 685.4547385 | J157: 12.84681141 | L157: 0.0191
C158: GT 500m3 | E158: 1037.198727 | F158: 272.5457466 | H158: 277.7513704 | J158: 5.20562376 | L158: 0.0191
C159: Contracted Demand | E159: 0 | F159: 0 | H159: 0 | J159: 0
C160: Commodity | E160: =SUM(E156:E159) -> 4720 | F160: 531.0472 | H160: 531.0472 | J160: 0 | L160: 0
C161: Upstream Recovery Charge | E161: =E160 -> 4720 | F161: 69.5728 | H161: 69.5728 | J161: 0 | L161: 0
C162: Transportation & Storage Charge | E162: =E161 -> 4720 | F162: 127.35504 | H162: 127.35504 | J162: 0 | L162: 0
C163: Federal Carbon Charge | E163: =E160 -> 4720 | F163: 369.576 | H163: 369.576 | J163: 0 | L163: 0
C164: Total Delivery | F164: =SUM(F154:F163) -> 2695.167526 | H164: =SUM(H154:H163) -> 2725.452801 | J164: =SUM(J154:J163) -> 30.28527488 | L164: =J164/F164 -> 0.0112368803
C166: Rate Riders | E166: Metric | F166: Current Rate | H166: Proposed Rate | J166: Change $ | L166: Change %
C167: Delay in Revenue Recovery Rate Rider | E167: =E160 -> 4720 | F167: =$E167*F148/100 -> 77.0776 | H167: =$E167*H148/100 -> 77.0776 | J167: =H167-F167 -> 0 | L167: =J167/F167 -> 0
C168: ='F1.3 Rate Riders'!$E$16 -> ECVA Rate Rider | E168: =E167 -> 4720 | F168: =$E168*F149/100 -> 0 | H168: =$E168*H149/100 -> 6.62216 | J168: =H168-F168 -> 6.62216 | L168: =J168/F168 -> 
C169: ='F1.3 Rate Riders'!$E$25 -> CIACVA Rate Rider | E169: =E168 -> 4720 | F169: 0 | H169: 26.32344 | J169: 26.32344
C170: ='F1.3 Rate Riders'!$E$34 -> EFVA Rate Rider | E170: 4720 | F170: 0 | H170: 24.52984 | J170: 24.52984
C171: Total Rate Riders | F171: =SUM(F167:F170) -> 77.0776 | H171: =SUM(H167:H170) -> 134.55304 | J171: =SUM(J167:J170) -> 57.47544 | L171: =J171/F171 -> 0.7456827924
C173: Total Bill Impact | F173: =F164+F171 -> 2772.245126 | H173: =H164+H171 -> 2860.005841 | J173: =J164+J171 -> 87.76071488 | L173: =J173/F173 -> 0.03165691016

Sheet G1.2 Rate 6 Bill Impact
C2: ='A1.1 Distributor Information'!C3 -> Name of LDC: EPCOR Natural Gas Limited Partnership
C3: ='A1.1 Distributor Information'!C4 -> OEB Application Number: EB-2021-0216 Exhibit A - 2022 Custom Incentive Application
C5: Rate 6 Delivery Bill Impact
C6: G1.2 Rate 6 Bill Impact
C8: Rate 6 - Medium Commercial | E8: Units | F8: Current Rate | H8: Proposed Rate
C10: Customer | E10: $/month | F10: =INDEX('B1.1 Current Distribution Rates'!$E$10:$Q$13,2,COUNTA($C$10:C10)) -> 105.15 | H10: =INDEX('E1.1 Proposed Dist Rates '!$E$10:$Q$13,2,COUNTA($C$10:C10)) -> 107.158365
C11: =OneDollar -> Bill 32 Rate | E11: $/month | F11: =INDEX('B1.1 Current Distribution Rates'!$E$10:$Q$13,2,COUNTA($C$10:C11)) -> 1 | H11: =INDEX('E1.1 Proposed Dist Rates '!$E$10:$Q$13,2,COUNTA($C$10:C11)) -> 1
C12: First 1000 m3 | E12: ₵/m3 | F12: =INDEX('B1.1 Current Distribution Rates'!$E$10:$Q$13,2,COUNTA($C$10:C12)) -> 25.4811 | H12: =INDEX('E1.1 Proposed Dist Rates '!$E$10:$Q$13,2,COUNTA($C$10:C12)) -> 25.96778901
C13: Next 6000 m3 | E13: ₵/m3 | F13: =INDEX('B1.1 Current Distribution Rates'!$E$10:$Q$13,2,COUNTA($C$10:C13)) -> 22.933 | H13: =INDEX('E1.1 Proposed Dist Rates '!$E$10:$Q$13,2,COUNTA($C$10:C13)) -> 23.3710203
C14: GT 7000m3 | E14: ₵/m3 | F14: =INDEX('B1.1 Current Distribution Rates'!$E$10:$Q$13,2,COUNTA($C$10:C14)) -> 21.7862 | H14: =INDEX('E1.1 Proposed Dist Rates '!$E$10:$Q$13,2,COUNTA($C$10:C14)) -> 22.20231642
C15: Contracted Demand | E15: ₵ / contracted m3 | F15: =INDEX('B1.1 Current Distribution Rates'!$E$10:$Q$13,2,COUNTA($C$10:C15)) -> 0 | H15: =INDEX('E1.1 Proposed Dist Rates '!$E$10:$Q$13,2,COUNTA($C$10:C15)) -> 0
C16: Gas Supply | E16: ₵/m3 | F16: =INDEX('B1.1 Current Distribution Rates'!$E$10:$Q$13,2,COUNTA($C$10:C16)) -> 11.251 | H16: =INDEX('E1.1 Proposed Dist Rates '!$E$10:$Q$13,2,COUNTA($C$10:C16)) -> 11.251
C17: Upstream Recovery Charge | E17: ₵/m3 | F17: =INDEX('B1.1 Current Distribution Rates'!$E$10:$Q$13,2,COUNTA($C$10:C17)) -> 2.92 | H17: =INDEX('E1.1 Proposed Dist Rates '!$E$10:$Q$13,2,COUNTA($C$10:C17)) -> 2.92
C18: Transportation & Storage Charge | E18: ₵/m3 | F18: =INDEX('B1.1 Current Distribution Rates'!$E$10:$Q$13,2,COUNTA($C$10:C18)) -> 5.6413 | H18: =INDEX('E1.1 Proposed Dist Rates '!$E$10:$Q$13,2,COUNTA($C$10:C18)) -> 5.6413
C19: Federal Carbon Charge | E19: ₵/m3 | F19: ='B1.1 Current Distribution Rates'!Q11 -> 7.83 | H19: ='E1.1 Proposed Dist Rates '!Q11 -> 7.83
C21: Rate Riders
C22: ='F1.3 Rate Riders'!$E$7 -> Delay in Revenue Recovery Rate Rider | E22: ₵/m3 | F22: ='C1.1 Current Rate Riders'!E11 -> 0.909 | H22: ='F1.3 Rate Riders'!E10 -> 0.909
C23: ='F1.3 Rate Riders'!$E$16 -> ECVA Rate Rider | F23: 0 | H23: ='F1.3 Rate Riders'!$E$19 -> 0.1403
C24: ='F1.3 Rate Riders'!$E$25 -> CIACVA Rate Rider | F24: 0 | H24: ='F1.3 Rate Riders'!$E$28 -> 0.7091
C25: ='F1.3 Rate Riders'!$E$34 -> EFVA Rate Rider | F25: 0 | H25: ='F1.3 Rate Riders'!$E$37 -> 0.6608
C27: Delivery | E27: Metric | F27: Current Rate | H27: Proposed Rate | J27: Change $ | L27: Change %
C28: Customer | E28: 12 | F28: =F10*$E28 -> 1261.8 | H28: =H10*$E28 -> 1285.90038 | J28: =H28-F28 -> 24.10038 | L28: =J28/F28 -> 0.0191
C29: =OneDollar -> Bill 32 Rate | E29: =E28 -> 12 | F29: =E29*F11 -> 12 | H29: =E29*H11 -> 12 | J29: 0 | L29: 0
C30: First 1000 m3 | E30: 9831.543338 | F30: =F12*$E30/100 -> 2505.185389 | H30: =H12*$E30/100 -> 2553.03443 | J30: 47.84904094 | L30: 0.0191
C31: Next 6000 m3 | E31: 17101.45666 | F31: 3921.877056 | H31: 3996.784908 | J31: 74.90785178 | L31: 0.0191
C32: GT 7000m3 | E32: 0 | F32: 0 | H32: 0 | J32: 0
C33: Contracted Demand | E33: 0 | F33: 0 | H33: 0 | J33: 0
C34: Gas Supply | E34: =SUM(E30:E33) -> 26933 | F34: 3030.23183 | H34: 3030.23183 | J34: 0 | L34: 0
C35: Upstream Recovery Charge | E35: =E34 -> 26933 | F35: 786.4436 | H35: 786.4436 | J35: 0 | L35: 0
C36: Transportation & Storage Charge | E36: =E35 -> 26933 | F36: 1519.371329 | H36: 1519.371329 | J36: 0 | L36: 0
C37: Federal Carbon Charge | E37: =E36 -> 26933 | F37: 2108.8539 | H37: 2108.8539 | J37: 0 | L37: 0
C38: Total Delivery | F38: =SUM(F28:F37) -> 15145.7631 | H38: =SUM(H28:H37) -> 15292.62038 | J38: =SUM(J28:J37) -> 146.8572727 | L38: 0.00969626104
C40: Rate Riders | E40: Metric | F40: Current Rate | H40: Proposed Rate | J40: Change $ | L40: Change %
C41: Delay in Revenue Recovery Rate Rider | E41: =E34 -> 26933 | F41: =$E41*F22/100 -> 244.82097 | H41: =$E41*H22/100 -> 244.82097 | J41: =H41-F41 -> 0 | L41: =J41/F41 -> 0
C42: ='F1.3 Rate Riders'!$E$16 -> ECVA Rate Rider | E42: =E41 -> 26933 | F42: =$E42*F23/100 -> 0 | H42: =$E42*H23/100 -> 37.786999 | J42: =H42-F42 -> 37.786999 | L42: =J42/F42 -> 
C43: ='F1.3 Rate Riders'!$E$25 -> CIACVA Rate Rider | E43: =E42 -> 26933 | F43: 0 | H43: 190.981903 | J43: 190.981903 | L43: =J43/F43 -> 
C44: ='F1.3 Rate Riders'!$E$34 -> EFVA Rate Rider | E44: 26933 | F44: 0 | H44: 177.973264 | J44: 177.973264
C45: Total Rate Riders | F45: =SUM(F41:F44) -> 244.82097 | H45: =SUM(H41:H44) -> 651.563136 | J45: =SUM(J41:J44) -> 406.742166 | L45: =J45/F45 -> 1.661386139
C47: Total Bill Impact | F47: =F38+F45 -> 15390.58407 | H47: =H38+H45 -> 15944.18351 | J47: =J38+J45 -> 553.5994387 | L47: =J47/F47 -> 0.03597000842
C50: Rate 6 - Medium Commercial | E50: Units | F50: Current Rate | H50: Proposed Rate
C52: Customer | E52: $/month | F52: =F10 -> 105.15 | H52: =H10 -> 107.158365
C53: =OneDollar -> Bill 32 Rate | E53: $/month | F53: 1 | H53: 1
C54: First 1000 m3 | E54: ₵/m3 | F54: 25.4811 | H54: 25.96778901
C55: Next 6000 m3 | E55: ₵/m3 | F55: 22.933 | H55: 23.3710203
C56: GT 7000m3 | E56: ₵/m3 | F56: 21.7862 | H56: 22.20231642
C57: Contracted Demand | E57: ₵ / contracted m3 | F57: 0 | H57: 0
C58: Gas Supply | E58: ₵/m3 | F58: 11.251 | H58: 11.251
C59: Upstream Recovery Charge | E59: ₵/m3 | F59: 2.92 | H59: 2.92
C60: Transportation & Storage Charge | E60: ₵/m3 | F60: 5.6413 | H60: 5.6413
C61: Federal Carbon Charge | E61: ₵/m3 | F61: 7.83 | H61: 7.83
C63: Rate Riders
C64: Delay in Revenue Recovery Rate Rider | E64: ₵/m3 | F64: =F22 -> 0.909 | H64: =H22 -> 0.909
C65: ='F1.3 Rate Riders'!$E$16 -> ECVA Rate Rider | F65: 0 | H65: ='F1.3 Rate Riders'!$E$19 -> 0.1403
C66: ='F1.3 Rate Riders'!$E$25 -> CIACVA Rate Rider | F66: 0 | H66: ='F1.3 Rate Riders'!$E$28 -> 0.7091
C67: ='F1.3 Rate Riders'!$E$34 -> EFVA Rate Rider | F67: 0 | H67: ='F1.3 Rate Riders'!$E$37 -> 0.6608
C69: Delivery | E69: Metric | F69: Current Rate | H69: Proposed Rate | J69: Change $ | L69: Change %
C70: Customer | E70: 12 | F70: =F52*$E70 -> 1261.8 | H70: =H52*$E70 -> 1285.90038 | J70: =H70-F70 -> 24.10038 | L70: =J70/F70 -> 0.0191
C71: =OneDollar -> Bill 32 Rate | E71: 12 | F71: =E71*F53 -> 12 | H71: =E71*H53 -> 12 | J71: =H71-F71 -> 0 | L71: =J71/F71 -> 0
C72: First 1000 m3 | E72: 11715.32619 | F72: =F54*$E72/100 -> 2985.193981 | H72: =H54*$E72/100 -> 3042.211186 | J72: =H72-F72 -> 57.01720504 | L72: =J72/F72 -> 0.0191
C73: Next 6000 m3 | E73: 40792.71842 | F73: 9354.994115 | H73: 9533.674503 | J73: 178.6803876 | L73: 0.0191
C74: GT 7000m3 | E74: 23176.95539 | F74: 5049.377856 | H74: 5145.820973 | J74: 96.44311705 | L74: 0.0191
C75: Contracted Demand | E75: 0 | F75: 0 | H75: 0 | J75: 0
C76: Gas Supply | E76: =SUM(E72:E75) -> 75685 | F76: 8515.31935 | H76: 8515.31935 | J76: 0 | L76: 0
C77: Upstream Recovery Charge | E77: =E76 -> 75685 | F77: 2210.002 | H77: 2210.002 | J77: 0 | L77: 0
C78: Transportation & Storage Charge | E78: =E77 -> 75685 | F78: 4269.617905 | H78: 4269.617905 | J78: 0 | L78: 0
C79: Federal Carbon Charge | E79: =E78 -> 75685 | F79: 5926.1355 | H79: 5926.1355 | J79: 0 | L79: 0
C80: Total Delivery | F80: =SUM(F70:F79) -> 39584.44071 | H80: =SUM(H70:H79) -> 39940.6818 | J80: =SUM(J70:J79) -> 356.2410897 | L80: =J80/F80 -> 0.008999523129
C82: Rate Riders | E82: Metric | F82: Current Rate | H82: Proposed Rate | J82: Change $ | L82: Change %
C83: Delay in Revenue Recovery Rate Rider | E83: =E76 -> 75685 | F83: =$E83*F64/100 -> 687.97665 | H83: =$E83*H64/100 -> 687.97665 | J83: =H83-F83 -> 0 | L83: =J83/F83 -> 0
C84: ='F1.3 Rate Riders'!E16 -> ECVA Rate Rider | E84: =E83 -> 75685 | F84: =$E84*F65/100 -> 0 | H84: =$E84*H65/100 -> 106.186055 | J84: =H84-F84 -> 106.186055 | L84: =J84/F84 -> 
C85: ='F1.3 Rate Riders'!E25 -> CIACVA Rate Rider | E85: =E84 -> 75685 | F85: 0 | H85: 536.682335 | J85: 536.682335
C86: ='F1.3 Rate Riders'!E34 -> EFVA Rate Rider | E86: 75685 | F86: 0 | H86: 500.12648 | J86: 500.12648
C87: Total Rate Riders | F87: =SUM(F83:F86) -> 687.97665 | H87: =SUM(H83:H86) -> 1830.97152 | J87: =SUM(J83:J86) -> 1142.99487 | L87: =J87/F87 -> 1.661386139
C89: Total Bill Impact | F89: =F80+F87 -> 40272.41736 | H89: =H80+H87 -> 41771.65332 | J89: =J80+J87 -> 1499.23596 | L89: =J89/F89 -> 0.03722736449

Sheet G1.3 Rate 11 Bill Impact
C2: ='A1.1 Distributor Information'!C3 -> Name of LDC: EPCOR Natural Gas Limited Partnership
C3: ='A1.1 Distributor Information'!C4 -> OEB Application Number: EB-2021-0216 Exhibit A - 2022 Custom Incentive Application
C5: Rate 11 Delivery Bill Impact
C6: =MID(CELL("filename",A1),FIND("]",CELL("filename",A1))+1,255) -> G1.3 Rate 11 Bill Impact
C8: Rate 11 - Large Seasonal Service Sample Dryer 1 | E8: Units | F8: Current Rate | H8: Proposed Rate
C10: Customer | E10: $/month | F10: =INDEX('B1.1 Current Distribution Rates'!$E$10:$Q$13,3,COUNTA($C10:C$10)) -> 210.29 | H10: =INDEX('E1.1 Proposed Dist Rates '!$E$10:$Q$13,3,COUNTA($C10:C$10)) -> 214.306539
C11: =OneDollar -> Bill 32 Rate | E11: $/month | F11: =INDEX('B1.1 Current Distribution Rates'!$E$10:$Q$13,3,COUNTA($C$10:C11)) -> 1 | H11: =INDEX('E1.1 Proposed Dist Rates '!$E$10:$Q$13,3,COUNTA($C$10:C11)) -> 1
C12: All Volumes | E12: ₵/m3 | F12: =INDEX('B1.1 Current Distribution Rates'!$E$10:$Q$13,3,COUNTA($C$10:C12)) -> 15.828 | H12: =INDEX('E1.1 Proposed Dist Rates '!$E$10:$Q$13,3,COUNTA($C$10:C12)) -> 16.1303148
C13: Tier 2 | E13: ₵/m3 | F13: =INDEX('B1.1 Current Distribution Rates'!$E$10:$Q$13,3,COUNTA($C$10:C13)) -> 15.828 | H13: =INDEX('E1.1 Proposed Dist Rates '!$E$10:$Q$13,3,COUNTA($C$10:C13)) -> 16.1303148
C14: Tier 3 | E14: ₵/m3 | F14: =INDEX('B1.1 Current Distribution Rates'!$E$10:$Q$13,3,COUNTA($C$10:C14)) -> 15.828 | H14: =INDEX('E1.1 Proposed Dist Rates '!$E$10:$Q$13,3,COUNTA($C$10:C14)) -> 16.1303148
C15: Contracted Demand | E15: ₵ / contracted m3 | F15: =INDEX('B1.1 Current Distribution Rates'!$E$10:$Q$13,3,COUNTA($C$10:C15)) -> 0 | H15: =INDEX('E1.1 Proposed Dist Rates '!$E$10:$Q$13,3,COUNTA($C$10:C15)) -> 0
C16: Gas Supply | E16: ₵/m3 | F16: =INDEX('B1.1 Current Distribution Rates'!$E$10:$Q$13,3,COUNTA($C$10:C16)) -> 11.251 | H16: =INDEX('E1.1 Proposed Dist Rates '!$E$10:$Q$13,3,COUNTA($C$10:C16)) -> 11.251
C17: Upstream Recovery Charge | E17: ₵/m3 | F17: =INDEX('B1.1 Current Distribution Rates'!$E$10:$Q$13,3,COUNTA($C$10:C17)) -> 0.0352 | H17: =INDEX('E1.1 Proposed Dist Rates '!$E$10:$Q$13,3,COUNTA($C$10:C17)) -> 0.0352
C18: Transportation & Storage Charge | E18: ₵/m3 | F18: =INDEX('B1.1 Current Distribution Rates'!$E$10:$Q$13,3,COUNTA($C$10:C18)) -> 1.8166 | H18: =INDEX('E1.1 Proposed Dist Rates '!$E$10:$Q$13,3,COUNTA($C$10:C18)) -> 1.8166
C19: Federal Carbon Charge | E19: ₵/m3 | F19: ='B1.1 Current Distribution Rates'!Q12 -> 7.83 | H19: ='E1.1 Proposed Dist Rates '!Q12 -> 7.83
C21: Rate Riders
C22: Delay in Revenue Recovery Rate Rider | E22: ₵/m3 | F22: ='C1.1 Current Rate Riders'!E12 -> 0.5524 | H22: ='F1.3 Rate Riders'!E11 -> 0.5524
C23: ='F1.3 Rate Riders'!$E$16 -> ECVA Rate Rider | E23: ₵/m3 | F23: 0 | H23: ='F1.3 Rate Riders'!E20 -> 0.1403
C24: ='F1.3 Rate Riders'!$E$25 -> CIACVA Rate Rider | E24: ₵/m3 | F24: 0 | H24: ='F1.3 Rate Riders'!E29 -> 0.1153
C25: ='F1.3 Rate Riders'!$E$34 -> EFVA Rate Rider | E25: ₵/m3 | F25: 0 | H25: ='F1.3 Rate Riders'!E38 -> 0.1075
C27: Delivery | E27: Metric | F27: Current Rate | H27: Proposed Rate | J27: Change $ | L27: Change %
C28: Customer | E28: 12 | F28: =F10*$E28 -> 2523.48 | H28: =H10*$E28 -> 2571.678468 | J28: =H28-F28 -> 48.198468 | L28: =J28/F28 -> 0.0191
C29: =OneDollar -> Bill 32 Rate | E29: 12 | F29: =$E29*F11 -> 12 | H29: =$E29*H11 -> 12 | J29: 0 | L29: 0
C30: All Volumes | E30: 101499.4857 | F30: =F12*$E30/100 -> 16065.3386 | H30: =H12*$E30/100 -> 16372.18657 | J30: 306.8479673 | L30: 0.0191
C31: Tier 2 | E31: 0 | F31: 0 | H31: 0 | J31: 0
C32: Tier 3 | E32: 0 | F32: 0 | H32: 0 | J32: 0
C33: Contracted Demand | E33: 0 | F33: 0 | H33: 0 | J33: 0
C34: Gas Supply | E34: =SUM(E30:E33) -> 101499.4857 | F34: 11419.70714 | H34: 11419.70714 | J34: 0 | L34: 0
C35: Upstream Recovery Charge | E35: =E34 -> 101499.4857 | F35: 35.72781898 | H35: 35.72781898 | J35: 0 | L35: 0
C36: Transportation & Storage Charge | E36: =E35 -> 101499.4857 | F36: 1843.839658 | H36: 1843.839658 | J36: 0 | L36: 0
C37: Federal Carbon Charge | E37: =E36 -> 101499.4857 | F37: =$E37*F19/100 -> 7947.409733 | H37: =$E37*H19/100 -> 7947.409733 | J37: 0 | L37: 0
C38: Total Delivery | F38: =SUM(F28:F37) -> 39847.50295 | H38: =SUM(H28:H37) -> 40202.54939 | J38: =SUM(J28:J37) -> 355.0464353 | L38: 0.008910130096
C40: Rate Riders | E40: Metric | F40: Current Rate | H40: Proposed Rate | J40: Change $ | L40: Change %
C41: Delay in Revenue Recovery Rate Rider | E41: =E34 -> 101499.4857 | F41: =$E41*F22/100 -> 560.6831592 | H41: =$E41*H22/100 -> 560.6831592 | J41: =H41-F41 -> 0 | L41: =J41/F41 -> 0
C42: ='F1.3 Rate Riders'!$E$16 -> ECVA Rate Rider | E42: =E41 -> 101499.4857 | F42: =$E42*F23/100 -> 0 | H42: =$E42*H23/100 -> 142.4037785 | J42: =H42-F42 -> 142.4037785 | L42: =J42/F42 -> 
C43: ='F1.3 Rate Riders'!$E$25 -> CIACVA Rate Rider | E43: =E42 -> 101499.4857 | F43: 0 | H43: 117.0289071 | J43: 117.0289071
C44: ='F1.3 Rate Riders'!$E$34 -> EFVA Rate Rider | E44: 101499.4857 | F44: 0 | H44: 109.1119472 | J44: 109.1119472
C45: Total Rate Riders | F45: =SUM(F41:F44) -> 560.6831592 | H45: =SUM(H41:H44) -> 929.2277919 | J45: 368.5446327 | L45: =J45/F45 -> 0.6573135409
C47: Total Bill Impact | F47: =F38+F45 -> 40408.18611 | H47: =H38+H45 -> 41131.77718 | J47: =J38+J45 -> 723.591068 | L47: =J47/F47 -> 0.01790704156
C49: Rate 11 - Large Seasonal Service Sample Dryer 2 | E49: Units | F49: Current Rate | H49: Proposed Rate
C51: Customer | E51: $/month | F51: =F10 -> 210.29 | H51: =H10 -> 214.306539
C52: =OneDollar -> Bill 32 Rate | E52: $/month | F52: 1 | H52: 1
C53: All Volumes | E53: ₵/m3 | F53: =F12 -> 15.828 | H53: =H12 -> 16.1303148
C54: Tier 2 | E54: ₵/m3 | F54: 15.828 | H54: 16.1303148
C55: Tier 3 | E55: ₵/m3 | F55: 15.828 | H55: 16.1303148
C56: Contracted Demand | E56: ₵ / contracted m3 | F56: 0 | H56: 0
C57: Gas Supply | E57: ₵/m3 | F57: 11.251 | H57: 11.251
C58: Upstream Recovery Charge | E58: ₵/m3 | F58: 0.0352 | H58: 0.0352
C59: Transportation & Storage Charge | E59: ₵/m3 | F59: 1.8166 | H59: 1.8166
C60: Federal Carbon Charge | E60: ₵/m3 | F60: 3.91 | H60: 3.91
C62: Rate Riders
C63: Delay in Revenue Recovery Rate Rider | E63: ₵/m3 | F63: =F22 -> 0.5524 | H63: =H22 -> 0.5524
C64: ='F1.3 Rate Riders'!$E$16 -> ECVA Rate Rider | E64: ₵/m3 | F64: =F23 -> 0 | H64: =H23 -> 0.1403
C65: ='F1.3 Rate Riders'!$E$25 -> CIACVA Rate Rider | E65: ₵/m3 | F65: 0 | H65: 0.1153
C66: ='F1.3 Rate Riders'!$E$34 -> EFVA Rate Rider | E66: ₵/m3 | F66: 0 | H66: 0.1075
C68: Delivery | E68: Metric | F68: Current Rate | H68: Proposed Rate | J68: Change $ | L68: Change %
C69: Customer | E69: 12 | F69: =F51*$E69 -> 2523.48 | H69: =H51*$E69 -> 2571.678468 | J69: =H69-F69 -> 48.198468 | L69: =J69/F69 -> 0.0191
C70: =OneDollar -> Bill 32 Rate | E70: 12 | F70: =$E70*F52 -> 12 | H70: =$E70*H52 -> 12 | J70: =H70-F70 -> 0 | L70: =J70/F70 -> 0
C71: All Volumes | E71: 338331.6191 | F71: =F53*$E71/100 -> 53551.12867 | H71: =H53*$E71/100 -> 54573.95523 | J71: =H71-F71 -> 1022.826558 | L71: =J71/F71 -> 0.0191
C72: Tier 2 | E72: 0 | F72: 0 | H72: 0 | J72: 0
C73: Tier 3 | E73: 0 | F73: 0 | H73: 0 | J73: 0
C74: Contracted Demand | E74: 0 | F74: 0 | H74: 0 | J74: 0
C75: Gas Supply | E75: =SUM(E71:E74) -> 338331.6191 | F75: 38065.69047 | H75: 38065.69047 | J75: 0 | L75: 0
C76: Upstream Recovery Charge | E76: =E75 -> 338331.6191 | F76: 119.0927299 | H76: 119.0927299 | J76: 0 | L76: 0
C77: Transportation & Storage Charge | E77: =E76 -> 338331.6191 | F77: 6146.132193 | H77: 6146.132193 | J77: 0 | L77: 0
C78: Federal Carbon Charge | E78: =E77 -> 338331.6191 | F78: =$E78*F60/100 -> 13228.76631 | H78: =$E78*H60/100 -> 13228.76631 | J78: 0 | L78: 0
C79: Total Delivery | F79: =SUM(F69:F78) -> 113646.2904 | H79: =SUM(H69:H78) -> 114717.3154 | J79: =SUM(J69:J78) -> 1071.025026 | L79: =J79/F79 -> 0.009424196973
C81: Rate Riders | E81: Metric | F81: Current Rate | H81: Proposed Rate | J81: Change $ | L81: Change %
C82: Delay in Revenue Recovery Rate Rider | E82: =E75 -> 338331.6191 | F82: =$E82*F63/100 -> 1868.943864 | H82: =$E82*H63/100 -> 1868.943864 | J82: =H82-F82 -> 0 | L82: =J82/F82 -> 0
C83: ='F1.3 Rate Riders'!$E$16 -> ECVA Rate Rider | E83: =E82 -> 338331.6191 | F83: =$E83*F64/100 -> 0 | H83: =$E83*H64/100 -> 474.6792616 | J83: =H83-F83 -> 474.6792616 | L83: =J83/F83 -> 
C84: ='F1.3 Rate Riders'!$E$25 -> CIACVA Rate Rider | E84: =E83 -> 338331.6191 | F84: 0 | H84: 390.0963568 | J84: 390.0963568
C85: ='F1.3 Rate Riders'!$E$34 -> EFVA Rate Rider | E85: 338331.6191 | F85: 0 | H85: 363.7064906 | J85: 363.7064906
C86: Total Rate Riders | F86: =SUM(F82:F85) -> 1868.943864 | H86: =SUM(H82:H85) -> 3097.425973 | J86: =SUM(J82:J85) -> 1228.482109 | L86: =J86/F86 -> 0.6573135409
C88: Total Bill Impact | F88: =F79+F86 -> 115515.2342 | H88: =H79+H86 -> 117814.7414 | J88: =J79+J86 -> 2299.507135 | L88: =J88/F88 -> 0.01990652705

Sheet G1.4 Rate 16 Bill Impact
C2: ='A1.1 Distributor Information'!C3 -> Name of LDC: EPCOR Natural Gas Limited Partnership
C3: ='A1.1 Distributor Information'!C4 -> OEB Application Number: EB-2021-0216 Exhibit A - 2022 Custom Incentive Application
C5: Rate 16 Delivery Bill Impact
C6: =MID(CELL("filename",A1),FIND("]",CELL("filename",A1))+1,255) -> G1.4 Rate 16 Bill Impact
C8: Rate 16 - Contracted Demand | E8: Units | F8: Current Rate | H8: Proposed Rate
C10: Customer | E10: $/month | F10: =INDEX('B1.1 Current Distribution Rates'!$E$10:$Q$13,4,COUNTA($C$10:C10)) -> 1546.25 | H10: =INDEX('E1.1 Proposed Dist Rates '!$E$10:$Q$13,4,COUNTA($C$10:C10)) -> 1575.783375
C11: =OneDollar -> Bill 32 Rate | E11: $/month | F11: =INDEX('B1.1 Current Distribution Rates'!$E$10:$Q$13,4,COUNTA($C$10:C11)) -> 1 | H11: =INDEX('E1.1 Proposed Dist Rates '!$E$10:$Q$13,4,COUNTA($C$10:C11)) -> 1
C12: Tier 1 | E12: ₵/m3 | F12: =INDEX('B1.1 Current Distribution Rates'!$E$10:$Q$13,4,COUNTA($C$10:C12)) -> 0 | H12: =INDEX('E1.1 Proposed Dist Rates '!$E$10:$Q$13,4,COUNTA($C$10:C12)) -> 0
C13: Tier 2 | E13: ₵/m3 | F13: =INDEX('B1.1 Current Distribution Rates'!$E$10:$Q$13,4,COUNTA($C$10:C13)) -> 0 | H13: =INDEX('E1.1 Proposed Dist Rates '!$E$10:$Q$13,4,COUNTA($C$10:C13)) -> 0
C14: Tier 3 | E14: ₵/m3 | F14: =INDEX('B1.1 Current Distribution Rates'!$E$10:$Q$13,4,COUNTA($C$10:C14)) -> 0 | H14: =INDEX('E1.1 Proposed Dist Rates '!$E$10:$Q$13,4,COUNTA($C$10:C14)) -> 0
C15: Contracted Demand | E15: ₵ / contracted m3 | F15: =INDEX('B1.1 Current Distribution Rates'!$E$10:$Q$13,4,COUNTA($C$10:C15)) -> 105.4686 | H15: =INDEX('E1.1 Proposed Dist Rates '!$E$10:$Q$13,4,COUNTA($C$10:C15)) -> 107.4830503
C16: Gas Supply | E16: ₵/m3 | F16: =INDEX('B1.1 Current Distribution Rates'!$E$10:$Q$13,4,COUNTA($C$10:C16)) -> 0 | H16: =INDEX('E1.1 Proposed Dist Rates '!$E$10:$Q$13,4,COUNTA($C$10:C16)) -> 0
C17: Upstream Recovery Charge | E17: ₵ / contracted m3 | F17: =INDEX('B1.1 Current Distribution Rates'!$E$10:$Q$13,4,COUNTA($C$10:C17)) -> 14.2434 | H17: =INDEX('E1.1 Proposed Dist Rates '!$E$10:$Q$13,4,COUNTA($C$10:C17)) -> 14.2434
C18: Transportation Charge From Dawn | E18: ₵ / contracted m3 | F18: =INDEX('B1.1 Current Distribution Rates'!$E$10:$Q$13,4,COUNTA($C$10:C18)+1) -> 18.2999 | H18: =INDEX('E1.1 Proposed Dist Rates '!$E$10:$Q$13,4,COUNTA($C$10:C18)+1) -> 18.2999
C19: Transportation Charge From Kirkwall | E19: ₵ / contracted m3 | F19: =INDEX('B1.1 Current Distribution Rates'!$E$10:$Q$13,4,COUNTA($C$10:C19)+1) -> 11.848 | H19: =INDEX('E1.1 Proposed Dist Rates '!$E$10:$Q$13,4,COUNTA($C$10:C19)+1) -> 11.848
C20: Transportation Charge From Parkway | E20: ₵ / contracted m3 | F20: =INDEX('B1.1 Current Distribution Rates'!$E$10:$Q$13,4,COUNTA($C$10:C20)+1) -> 11.848 | H20: =INDEX('E1.1 Proposed Dist Rates '!$E$10:$Q$13,4,COUNTA($C$10:C20)+1) -> 11.848
C21: Federal Carbon Charge | E21: ₵/m3 | F21: =INDEX('B1.1 Current Distribution Rates'!$E$10:$Q$13,4,COUNTA($C$10:C21)+1) -> 7.83 | H21: =INDEX('E1.1 Proposed Dist Rates '!$E$10:$Q$13,4,COUNTA($C$10:C21)+1) -> 7.83
C23: Rate Riders
C24: Delay in Revenue Recovery Rate Rider | E24: ₵ / contracted m3 | F24: ='C1.1 Current Rate Riders'!E13 -> 0.0601 | H24: ='F1.3 Rate Riders'!E12 -> 0.0601
C25: ='F1.3 Rate Riders'!$E$16 -> ECVA Rate Rider | E25: ₵ / contracted m3 | F25: ='C1.1 Current Rate Riders'!E14 -> 0 | H25: ='F1.3 Rate Riders'!E21 -> 0
C26: ='F1.3 Rate Riders'!$E$25 -> CIACVA Rate Rider | E26: ₵ / contracted m3 | F26: ='C1.1 Current Rate Riders'!E15 -> 0 | H26: ='F1.3 Rate Riders'!E30 -> 0.8547
C27: ='F1.3 Rate Riders'!$E$34 -> EFVA Rate Rider | E27: ₵ / contracted m3 | F27: ='C1.1 Current Rate Riders'!E16 -> 0 | H27: ='F1.3 Rate Riders'!E39 -> 0.7964
C29: Delivery | E29: Metric | F29: Current Rate | H29: Proposed Rate | J29: Change $ | L29: Change %
C30: Customer | E30: 12 | F30: =F10*$E30 -> 18555 | H30: =H10*$E30 -> 18909.4005 | J30: =H30-F30 -> 354.4005 | L30: =J30/F30 -> 0.0191
C31: =OneDollar -> Bill 32 Rate | E31: =E30 -> 12 | F31: =$E31*F11 -> 12 | H31: =$E31*H11 -> 12 | J31: 0 | L31: 0
C32: Tier 1 | E32: 0 | F32: =F12*$E32/100 -> 0 | H32: =H12*$E32/100 -> 0 | J32: 0
C33: Tier 2 | E33: 0 | F33: =F13*$E33/100 -> 0 | H33: =H13*$E33/100 -> 0 | J33: 0
C34: Tier 3 | E34: 0 | F34: =F14*$E34/100 -> 0 | H34: =H14*$E34/100 -> 0 | J34: 0
C35: Contracted Demand | E35: 50000 | F35: =F15*$E35/100*$E$30 -> 632811.6 | H35: =H15*$E35/100*$E$30 -> 644898.3016 | J35: 12086.70156 | L35: 0.0191
C36: Gas Supply | E36: 0 | F36: =F16*$E36/100 -> 0 | H36: =H16*$E36/100 -> 0 | J36: 0
C37: Upstream Recovery Charge | E37: =$E$35 -> 50000 | F37: =F17*$E37/100*$E$30 -> 85460.4 | H37: =H17*$E37/100*$E$30 -> 85460.4 | J37: 0 | L37: 0
C38: Transportation Charge From Dawn | E38: =$E$35 -> 50000 | F38: =F18*$E38/100*$E$30 -> 109799.4 | H38: =H18*$E38/100*$E$30 -> 109799.4 | J38: 0 | L38: 0
C39: Transportation Charge From Kirkwall | E39: 0 | F39: =F19*$E39/100*$E$30 -> 0 | H39: =H19*$E39/100*$E$30 -> 0 | J39: 0
C40: Transportation Charge From Parkway | E40: 0 | F40: =F20*$E40/100*$E$30 -> 0 | H40: =H20*$E40/100*$E$30 -> 0 | J40: 0
C41: Federal Carbon Charge | E41: =$E$35 -> 50000 | F41: =$E41*F21/100*$E$30 -> 46980 | H41: =$E41*H21/100*$E$30 -> 46980 | J41: 0 | L41: 0
C42: Total Delivery | F42: =SUM(F30:F41) -> 893618.4 | H42: =SUM(H30:H41) -> 906059.5021 | J42: =SUM(J30:J41) -> 12441.10206 | L42: 0.01392216416
C44: Rate Riders | E44: Metric | F44: Current Rate | H44: Proposed Rate | J44: Change $ | L44: Change %
C45: Delay in Revenue Recovery Rate Rider | E45: =E30 -> 12 | F45: =$E$45*$E35*$F24/100 -> 360.6 | H45: =$E$45*$E35*$H24/100 -> 360.6 | J45: =H45-F45 -> 0 | L45: =J45/F45 -> 0
C46: ='F1.3 Rate Riders'!$E$16 -> ECVA Rate Rider | E46: =E45 -> 12 | F46: =$E$45*$E36*$F25/100 -> 0 | H46: =$E$45*$E36*$H25/100 -> 0 | J46: =H46-F46 -> 0 | L46: =J46/F46 -> 
C47: ='F1.3 Rate Riders'!$E$25 -> CIACVA Rate Rider | E47: =E46 -> 12 | F47: 0 | H47: =$E$45*$E37*$H26/100 -> 5128.2 | J47: 5128.2
C48: ='F1.3 Rate Riders'!$E$34 -> EFVA Rate Rider | E48: 12 | F48: 0 | H48: 4778.4 | J48: 4778.4
C49: Total Rate Riders | F49: =SUM(F45:F48) -> 360.6 | G49: =SUM(G45:G48) -> 0 | H49: 10267.2 | I49: 0 | J49: 9906.6 | L49: =J49/F49 -> 27.47254576
C51: Total Bill Impact | F51: =F42+F49 -> 893979 | H51: =H42+H49 -> 916326.7021 | J51: =J42+J49 -> 22347.70206 | L51: =J51/F51 -> 0.0249980168

Sheet G1.7 Summary of Bill Impacts
C2: ='A1.1 Distributor Information'!C3 -> Name of LDC: EPCOR Natural Gas Limited Partnership
C3: ='A1.1 Distributor Information'!C4 -> OEB Application Number: EB-2021-0216 Exhibit A - 2022 Custom Incentive Application
C5: Summary of Bill Impacts
C7: =MID(CELL("filename",A1),FIND("]",CELL("filename",A1))+1,255) -> G1.7 Summary of Bill Impacts
C8: Rate Class | E8: Fixed Change | F8: =OneDollar -> Bill 32 Rate | G8: Volumetric Change | H8: Rate Riders | I8: Upstream Recovery Charge | J8: Transportation & Storage Charge | K8: Federal Carbon Charge Change | L8: Total Change | M8: Total Change %
E9: ($/year) | F9: ($/year) | G9: ($/year) | H9: ($/year) | I9: ($/year) | J9: ($/year) | K9: ($/year) | L9: ($/year)
C10: Rate 1 | D10: Existing Residential | E10: ='G1.1 Rate 1 Bill Impact'!J30 -> 5.908776 | F10: ='G1.1 Rate 1 Bill Impact'!J31 -> 0 | G10: =SUM('G1.1 Rate 1 Bill Impact'!J32:J35) -> 11.21801717 | H10: ='G1.1 Rate 1 Bill Impact'!J47 -> 26.168373 | I10: ='G1.1 Rate 1 Bill Impact'!J37 -> 0 | J10: ='G1.1 Rate 1 Bill Impact'!J38 -> 0 | K10: ='G1.1 Rate 1 Bill Impact'!J39 -> 0 | L10: =SUM(E10:K10) -> 43.29516617 | M10: ='G1.1 Rate 1 Bill Impact'!L49 -> 0.02999328766
C11: Rate 1 | D11: New Residential | E11: ='G1.1 Rate 1 Bill Impact'!J72 -> 5.908776 | F11: ='G1.1 Rate 1 Bill Impact'!J73 -> 0 | G11: =SUM('G1.1 Rate 1 Bill Impact'!J74:J75) -> 10.78791631 | H11: ='G1.1 Rate 1 Bill Impact'!J89 -> 25.157682 | I11: ='G1.1 Rate 1 Bill Impact'!J79 -> 0 | J11: ='G1.1 Rate 1 Bill Impact'!J80 -> 0 | K11: ='G1.1 Rate 1 Bill Impact'!J81 -> 0 | L11: =SUM(E11:K11) -> 41.85437431 | M11: ='G1.1 Rate 1 Bill Impact'!L91 -> 0.02988912286
C12: Rate 1 | D12: Small Commercial | E12: ='G1.1 Rate 1 Bill Impact'!J113 -> 5.908776 | F12: ='G1.1 Rate 1 Bill Impact'!J114 -> 0 | G12: =SUM('G1.1 Rate 1 Bill Impact'!J115:J118) -> 24.23945867 | H12: ='G1.1 Rate 1 Bill Impact'!J130 -> 57.146661 | I12: ='G1.1 Rate 1 Bill Impact'!J120 -> 0 | J12: ='G1.1 Rate 1 Bill Impact'!J121 -> 0 | K12: ='G1.1 Rate 1 Bill Impact'!J122 -> 0 | L12: 87.29489567 | M12: ='G1.1 Rate 1 Bill Impact'!L132 -> 0.03164749394
C13: Rate 1 | D13: Small Agricultural | E13: ='G1.1 Rate 1 Bill Impact'!J154 -> 5.908776 | F13: ='G1.1 Rate 1 Bill Impact'!J155 -> 0 | G13: =SUM('G1.1 Rate 1 Bill Impact'!J156:J159) -> 24.37649888 | H13: ='G1.1 Rate 1 Bill Impact'!J171 -> 57.47544 | I13: ='G1.1 Rate 1 Bill Impact'!J161 -> 0 | J13: ='G1.1 Rate 1 Bill Impact'!J162 -> 0 | K13: ='G1.1 Rate 1 Bill Impact'!J163 -> 0 | L13: 87.76071488 | M13: ='G1.1 Rate 1 Bill Impact'!L173 -> 0.03165691016
C14: Rate 6 | D14: Medium Commercial | E14: ='G1.2 Rate 6 Bill Impact'!J28 -> 24.10038 | F14: ='G1.2 Rate 6 Bill Impact'!J29 -> 0 | G14: =SUM('G1.2 Rate 6 Bill Impact'!J30:J33) -> 122.7568927 | H14: ='G1.2 Rate 6 Bill Impact'!J45 -> 406.742166 | I14: ='G1.2 Rate 6 Bill Impact'!J35 -> 0 | J14: ='G1.2 Rate 6 Bill Impact'!J36 -> 0 | K14: ='G1.2 Rate 6 Bill Impact'!J37 -> 0 | L14: 553.5994387 | M14: ='G1.2 Rate 6 Bill Impact'!L47 -> 0.03597000842
C15: Rate 6 | D15: Large Commercial | E15: ='G1.2 Rate 6 Bill Impact'!J70 -> 24.10038 | F15: ='G1.2 Rate 6 Bill Impact'!J71 -> 0 | G15: =SUM('G1.2 Rate 6 Bill Impact'!J72:J75) -> 332.1407097 | H15: ='G1.2 Rate 6 Bill Impact'!J87 -> 1142.99487 | I15: ='G1.2 Rate 6 Bill Impact'!J77 -> 0 | J15: ='G1.2 Rate 6 Bill Impact'!J78 -> 0 | K15: ='G1.2 Rate 6 Bill Impact'!J79 -> 0 | L15: 1499.23596 | M15: ='G1.2 Rate 6 Bill Impact'!L89 -> 0.03722736449
C16: Rate 11 | D16: Sample Dryer 1 | E16: ='G1.3 Rate 11 Bill Impact'!J28 -> 48.198468 | F16: ='G1.3 Rate 11 Bill Impact'!J29 -> 0 | G16: =SUM('G1.3 Rate 11 Bill Impact'!J30:J33) -> 306.8479673 | H16: ='G1.3 Rate 11 Bill Impact'!J45 -> 368.5446327 | I16: ='G1.3 Rate 11 Bill Impact'!J35 -> 0 | J16: ='G1.3 Rate 11 Bill Impact'!J36 -> 0 | K16: ='G1.3 Rate 11 Bill Impact'!J37 -> 0 | L16: 723.591068 | M16: ='G1.3 Rate 11 Bill Impact'!L47 -> 0.01790704156
C17: Rate 11 | D17: Sample Dryer 2 | E17: ='G1.3 Rate 11 Bill Impact'!J69 -> 48.198468 | F17: ='G1.3 Rate 11 Bill Impact'!J70 -> 0 | G17: =SUM('G1.3 Rate 11 Bill Impact'!J71:J74) -> 1022.826558 | H17: ='G1.3 Rate 11 Bill Impact'!J86 -> 1228.482109 | I17: ='G1.3 Rate 11 Bill Impact'!J76 -> 0 | J17: ='G1.3 Rate 11 Bill Impact'!J77 -> 0 | K17: ='G1.3 Rate 11 Bill Impact'!J78 -> 0 | L17: 2299.507135 | M17: ='G1.3 Rate 11 Bill Impact'!L88 -> 0.01990652705
C18: Rate 16 | D18: Contracted Demand | E18: ='G1.4 Rate 16 Bill Impact'!J30 -> 354.4005 | F18: ='G1.4 Rate 16 Bill Impact'!J31 -> 0 | G18: =SUM('G1.4 Rate 16 Bill Impact'!J32:J35) -> 12086.70156 | H18: ='G1.4 Rate 16 Bill Impact'!J49 -> 9906.6 | I18: ='G1.4 Rate 16 Bill Impact'!J37 -> 0 | J18: =SUM('G1.4 Rate 16 Bill Impact'!J38:J40) -> 0 | K18: ='G1.4 Rate 16 Bill Impact'!J41 -> 0 | L18: 22347.70206 | M18: ='G1.4 Rate 16 Bill Impact'!L51 -> 0.0249980168
